Body Name,Body,Service division categorisation,Expense Type,Date paid,Transaction Reference,Net,Supplier Name,Redacted/Excluded
East Lindsey District Council,http://statistics.data.gov.uk/id/local-authority/32UC,BALANCE  SHEET,Payroll-Net Pay,02/01/13,IJ00017456,921568.41,EAST LINDSEY DISTRICT COUNCIL, 
East Lindsey District Council,http://statistics.data.gov.uk/id/local-authority/32UC,Collection Fund,Precept - Lincolnshire Police,02/01/13,IJ00017304,893833.25,LOCAL POLICE AUTHORITY FUND ACCOUNT, 
East Lindsey District Council,http://statistics.data.gov.uk/id/local-authority/32UC,Collection Fund,Precept- Lincolnshire County Council,02/01/13,IJ00017305,5110516.00,LINCOLNSHIRE COUNTY COUNCIL, 
East Lindsey District Council,http://statistics.data.gov.uk/id/local-authority/32UC,Policy & Project Manager,Professional & Contractors Fees,03/01/13,IJ00017337,42.44,BIFFA WASTE SERVICES LTD, 
East Lindsey District Council,http://statistics.data.gov.uk/id/local-authority/32UC,Horncastle Pool Manager,Professional & Contractors Fees,03/01/13,IJ00017337,84.88,BIFFA WASTE SERVICES LTD, 
East Lindsey District Council,http://statistics.data.gov.uk/id/local-authority/32UC,TL Property,Professional & Contractors Fees,03/01/13,IJ00017337,84.88,BIFFA WASTE SERVICES LTD, 
East Lindsey District Council,http://statistics.data.gov.uk/id/local-authority/32UC,TL Property,Professional & Contractors Fees,03/01/13,IJ00017337,42.44,BIFFA WASTE SERVICES LTD, 
East Lindsey District Council,http://statistics.data.gov.uk/id/local-authority/32UC,TL Property,Professional & Contractors Fees,03/01/13,IJ00017337,204.19,BIFFA WASTE SERVICES LTD, 
East Lindsey District Council,http://statistics.data.gov.uk/id/local-authority/32UC,TL Property,Professional & Contractors Fees,03/01/13,IJ00017337,42.44,BIFFA WASTE SERVICES LTD, 
East Lindsey District Council,http://statistics.data.gov.uk/id/local-authority/32UC,Policy & Project Manager,Professional & Contractors Fees,03/01/13,IJ00017337,42.44,BIFFA WASTE SERVICES LTD, 
East Lindsey District Council,http://statistics.data.gov.uk/id/local-authority/32UC,Policy & Project Manager,Professional & Contractors Fees,03/01/13,IJ00017337,42.44,BIFFA WASTE SERVICES LTD, 
East Lindsey District Council,http://statistics.data.gov.uk/id/local-authority/32UC,Embassy Pool Manager,Professional & Contractors Fees,03/01/13,IJ00017337,212.21,BIFFA WASTE SERVICES LTD, 
East Lindsey District Council,http://statistics.data.gov.uk/id/local-authority/32UC,Theatre Manager,Professional & Contractors Fees,03/01/13,IJ00017337,84.88,BIFFA WASTE SERVICES LTD, 
East Lindsey District Council,http://statistics.data.gov.uk/id/local-authority/32UC,Theatre Manager,Professional & Contractors Fees,03/01/13,IJ00017337,29.00,BIFFA WASTE SERVICES LTD, 
East Lindsey District Council,http://statistics.data.gov.uk/id/local-authority/32UC,Sports Centre Manager,Professional & Contractors Fees,03/01/13,IJ00017337,42.44,BIFFA WASTE SERVICES LTD, 
East Lindsey District Council,http://statistics.data.gov.uk/id/local-authority/32UC,Meridian Facility Manager,Professional & Contractors Fees,03/01/13,IJ00017337,42.44,BIFFA WASTE SERVICES LTD, 
East Lindsey District Council,http://statistics.data.gov.uk/id/local-authority/32UC,Democracy Manager,Rent and Lease Payments,03/01/13,IJ00017473,1413.33,EAST LINDSEY DISTRICT COUNCIL, 
East Lindsey District Council,http://statistics.data.gov.uk/id/local-authority/32UC,Hsg Advice & Homelessness TL,Other Miscellaneous Expenses,03/01/13,IJ00017464,500.00,STEVENS PROPERTY MANAGEMENT, 
East Lindsey District Council,http://statistics.data.gov.uk/id/local-authority/32UC,Capital WIP,Grants and Contributions to Outside Bodies- No Service Recei,03/01/13,IJ00017439,5091.21,COTTS BUILDERS AND CONTRACTORS, 
East Lindsey District Council,http://statistics.data.gov.uk/id/local-authority/32UC,Capital WIP,Grants and Contributions to Outside Bodies- No Service Recei,03/01/13,IJ00017441,5724.46,COTTS BUILDERS AND CONTRACTORS, 
East Lindsey District Council,http://statistics.data.gov.uk/id/local-authority/32UC,Capital WIP,Grants and Contributions to Outside Bodies- No Service Recei,03/01/13,IJ00017443,5712.91,M & M GRANTHAM, 
East Lindsey District Council,http://statistics.data.gov.uk/id/local-authority/32UC,Hsg Private Sector TL,Other Income,03/01/13,IJ00017443,-510.08,M & M GRANTHAM, 
East Lindsey District Council,http://statistics.data.gov.uk/id/local-authority/32UC,Shared Legal Services,Lincolnshire Legal Services,03/01/13,IJ00017379,17969.51,LINCOLNSHIRE COUNTY COUNCIL, 
East Lindsey District Council,http://statistics.data.gov.uk/id/local-authority/32UC,Shared Legal Services,Lincolnshire Legal Services,03/01/13,IJ00017379,1343.50,LINCOLNSHIRE COUNTY COUNCIL, 
East Lindsey District Council,http://statistics.data.gov.uk/id/local-authority/32UC,Business Development Manager,Other Miscellaneous Expenses,03/01/13,IJ00017274,5000.00,LINCOLNSHIRE COUNTY COUNCIL, 
East Lindsey District Council,http://statistics.data.gov.uk/id/local-authority/32UC,BALANCE  SHEET,Payroll-Unison,03/01/13,IJ00017362,1735.15,UNISON, 
East Lindsey District Council,http://statistics.data.gov.uk/id/local-authority/32UC,Corporate Accounting,Computer Hardware Purchase,03/01/13,IJ00017474,650.00,CHRISTOPHER DONKIN, 
East Lindsey District Council,http://statistics.data.gov.uk/id/local-authority/32UC,Collection Fund,Payment to NNDR Pool,03/01/13,IJ00017486,1489472.00,DEPARTMENT FOR COMMUNITIES AND LOCAL, 
East Lindsey District Council,http://statistics.data.gov.uk/id/local-authority/32UC,Corporate Accounting,Non Domestic Rates,03/01/13,IJ00017486,-585451.00,DEPARTMENT FOR COMMUNITIES AND LOCAL, 
East Lindsey District Council,http://statistics.data.gov.uk/id/local-authority/32UC,Performance Monitoring Manager,Other Private Contractors,03/01/13,IJ00017308,699.00,SNAP SURVEYS LTD, 
East Lindsey District Council,http://statistics.data.gov.uk/id/local-authority/32UC,Technical Services Team Leader,Professional & Contractors Fees,03/01/13,IJ00017323,575.00,ALAN WOOD & PARTNERS, 
East Lindsey District Council,http://statistics.data.gov.uk/id/local-authority/32UC,Waste Services Manager,Furniture and Equipment,03/01/13,IJ00017265,16110.00,MABLETHORPE & SUTTON TOWN COUNCIL, 
East Lindsey District Council,http://statistics.data.gov.uk/id/local-authority/32UC,Waste Services Manager,Agency Staff,03/01/13,IJ00017259,2107.24,CLOSE INVOICE FINANCE LTD, 
East Lindsey District Council,http://statistics.data.gov.uk/id/local-authority/32UC,Waste Services Manager,Agency Staff,03/01/13,IJ00017303,1772.82,CLOSE INVOICE FINANCE LTD, 
East Lindsey District Council,http://statistics.data.gov.uk/id/local-authority/32UC,Improvement & Development Mngr,Commercial Vehicle Lease,03/01/13,IJ00017475,2778.41,ING LEASE (UK) LTD, 
East Lindsey District Council,http://statistics.data.gov.uk/id/local-authority/32UC,Capital WIP,Works to Buildings (main Contractor),03/01/13,IJ00017484,2490.00,PELL PLANT HIRE LTD, 
East Lindsey District Council,http://statistics.data.gov.uk/id/local-authority/32UC,BALANCE  SHEET,Payroll-Gmbatu,03/01/13,IJ00017378,700.74,GMB NATIONAL ADMINISTRATION UNIT, 
East Lindsey District Council,http://statistics.data.gov.uk/id/local-authority/32UC,Policy & Project Manager,Telephones,03/01/13,IJ00017466,647.16,MULTIDATA (EUROPE), 
East Lindsey District Council,http://statistics.data.gov.uk/id/local-authority/32UC,Meridian Facility Manager,Telephones,03/01/13,IJ00017466,165.00,MULTIDATA (EUROPE), 
East Lindsey District Council,http://statistics.data.gov.uk/id/local-authority/32UC,Policy & Project Manager,Telephones,03/01/13,IJ00017466,585.00,MULTIDATA (EUROPE), 
East Lindsey District Council,http://statistics.data.gov.uk/id/local-authority/32UC,Policy & Project Manager,Telephones,03/01/13,IJ00017466,647.16,MULTIDATA (EUROPE), 
East Lindsey District Council,http://statistics.data.gov.uk/id/local-authority/32UC,Democracy Manager,Grants and Contributions to Outside Bodies- No Service Recei,03/01/13,IJ00017268,550.00,SKIDBROOKE CUM SALTFLEET HAVEN P.C., 
East Lindsey District Council,http://statistics.data.gov.uk/id/local-authority/32UC,TL Property,Materials and Consumables,03/01/13,IJ00017438,800.00,PHS DATASHRED, 
East Lindsey District Council,http://statistics.data.gov.uk/id/local-authority/32UC,Capital WIP,Grants and Contributions to Outside Bodies- No Service Recei,03/01/13,IJ00017442,4884.57,RODDEN & COOPER, 
East Lindsey District Council,http://statistics.data.gov.uk/id/local-authority/32UC,Hsg Private Sector TL,Other Income,03/01/13,IJ00017442,-436.12,RODDEN & COOPER, 
East Lindsey District Council,http://statistics.data.gov.uk/id/local-authority/32UC,Democracy Manager,Other Miscellaneous Expenses,03/01/13,IJ00017404,2485.57,HALAROSE LIMITED, 
East Lindsey District Council,http://statistics.data.gov.uk/id/local-authority/32UC,Area Working,Agency Staff,03/01/13,IJ00017298,688.68,THE WORKSHOP (WISBECH) LIMITED, 
East Lindsey District Council,http://statistics.data.gov.uk/id/local-authority/32UC,Area Working,Agency Staff,03/01/13,IJ00017298,688.67,THE WORKSHOP (WISBECH) LIMITED, 
East Lindsey District Council,http://statistics.data.gov.uk/id/local-authority/32UC,Area Working,Agency Staff,03/01/13,IJ00017477,604.18,THE WORKSHOP (WISBECH) LIMITED, 
East Lindsey District Council,http://statistics.data.gov.uk/id/local-authority/32UC,Area Working,Agency Staff,03/01/13,IJ00017477,604.17,THE WORKSHOP (WISBECH) LIMITED, 
East Lindsey District Council,http://statistics.data.gov.uk/id/local-authority/32UC,Meridian Facility Manager,Other Miscellaneous Expenses,03/01/13,IJ00017317,922.19,AQUA VITA CAFE, 
East Lindsey District Council,http://statistics.data.gov.uk/id/local-authority/32UC,Capital WIP,Grants and Contributions to Outside Bodies- No Service Recei,03/01/13,IJ00017445,2982.00,THM CONSTRUCTION, 
East Lindsey District Council,http://statistics.data.gov.uk/id/local-authority/32UC,Waste Services Manager,Maintenance,03/01/13,IJ00017397,1169.58,MCFARLAND ENGINEERING, 
East Lindsey District Council,http://statistics.data.gov.uk/id/local-authority/32UC,Waste Services Manager,Maintenance,03/01/13,IJ00017400,1169.58,MCFARLAND ENGINEERING, 
East Lindsey District Council,http://statistics.data.gov.uk/id/local-authority/32UC,Waste Services Manager,Materials and Consumables,03/01/13,IJ00017450,700.00,ESE LTD, 
East Lindsey District Council,http://statistics.data.gov.uk/id/local-authority/32UC,Policy & Project Manager,Grants and Contributions- Where a Service is Received,03/01/13,IJ00017217,5000.00,SKILLSREACH, 
East Lindsey District Council,http://statistics.data.gov.uk/id/local-authority/32UC,Capital WIP,Grants and Contributions to Outside Bodies- No Service Recei,03/01/13,IJ00017444,4631.61,MARK DONNER LTD, 
East Lindsey District Council,http://statistics.data.gov.uk/id/local-authority/32UC,Hsg Private Sector TL,Other Income,03/01/13,IJ00017444,-413.54,MARK DONNER LTD, 
East Lindsey District Council,http://statistics.data.gov.uk/id/local-authority/32UC,Policy & Project Manager,Grants and Contributions- Where a Service is Received,03/01/13,IJ00017309,1000.00,LINCOLNSHIRE COUNTY COUNCIL, 
East Lindsey District Council,http://statistics.data.gov.uk/id/local-authority/32UC,Building Control,Other Miscellaneous Expenses,03/01/13,IJ00017402,784.00,BSI, 
East Lindsey District Council,http://statistics.data.gov.uk/id/local-authority/32UC,Democracy Manager,Staff Training Expenses,03/01/13,IJ00017320,1875.00,ASSOCIATION OF DEMOCRATIC SERVICES OFFICERS, 
East Lindsey District Council,http://statistics.data.gov.uk/id/local-authority/32UC,Hsg Advice & Homelessness TL,Other Miscellaneous Expenses,03/01/13,IJ00017277,600.00,REDACTED PERSONAL INFORMATION,REDACT
East Lindsey District Council,http://statistics.data.gov.uk/id/local-authority/32UC,Democracy Manager,Grants and Contributions to Outside Bodies- No Service Recei,03/01/13,IJ00017418,620.00,LANGRICK MATTERS, 
East Lindsey District Council,http://statistics.data.gov.uk/id/local-authority/32UC,Area Working,Maintenance,03/01/13,IJ00017279,644.18,MAY GURNEY FLEET & PASSENGER SERVICES LTD, 
East Lindsey District Council,http://statistics.data.gov.uk/id/local-authority/32UC,Area Working,Maintenance,03/01/13,IJ00017282,580.34,MAY GURNEY FLEET & PASSENGER SERVICES LTD, 
East Lindsey District Council,http://statistics.data.gov.uk/id/local-authority/32UC,Area Working,Maintenance,03/01/13,IJ00017283,637.96,MAY GURNEY FLEET & PASSENGER SERVICES LTD, 
East Lindsey District Council,http://statistics.data.gov.uk/id/local-authority/32UC,Area Working,Commercial Vehicle Lease,03/01/13,IJ00017292,5209.83,MAY GURNEY FLEET & PASSENGER SERVICES LTD, 
East Lindsey District Council,http://statistics.data.gov.uk/id/local-authority/32UC,Technical Services Team Leader,Commercial Vehicle Lease,03/01/13,IJ00017453,308.65,MAY GURNEY FLEET & PASSENGER SERVICES LTD, 
East Lindsey District Council,http://statistics.data.gov.uk/id/local-authority/32UC,Waste Services Manager,Commercial Vehicle Lease,03/01/13,IJ00017453,4359.18,MAY GURNEY FLEET & PASSENGER SERVICES LTD, 
East Lindsey District Council,http://statistics.data.gov.uk/id/local-authority/32UC,Waste Services Manager,Commercial Vehicle Lease,03/01/13,IJ00017453,-1408.67,MAY GURNEY FLEET & PASSENGER SERVICES LTD, 
East Lindsey District Council,http://statistics.data.gov.uk/id/local-authority/32UC,Waste Services Manager,Commercial Vehicle Lease,03/01/13,IJ00017453,-237.53,MAY GURNEY FLEET & PASSENGER SERVICES LTD, 
East Lindsey District Council,http://statistics.data.gov.uk/id/local-authority/32UC,Theatre Manager,Commercial Vehicle Lease,03/01/13,IJ00017453,376.97,MAY GURNEY FLEET & PASSENGER SERVICES LTD, 
East Lindsey District Council,http://statistics.data.gov.uk/id/local-authority/32UC,Area Working,Commercial Vehicle Lease,03/01/13,IJ00017453,12442.00,MAY GURNEY FLEET & PASSENGER SERVICES LTD, 
East Lindsey District Council,http://statistics.data.gov.uk/id/local-authority/32UC,Area Working,Commercial Vehicle Lease,03/01/13,IJ00017453,12442.00,MAY GURNEY FLEET & PASSENGER SERVICES LTD, 
East Lindsey District Council,http://statistics.data.gov.uk/id/local-authority/32UC,Health Team Leader,Staff Training Expenses,03/01/13,IJ00017330,658.50,THE GOLF HOTEL, 
East Lindsey District Council,http://statistics.data.gov.uk/id/local-authority/32UC,Waste Services Manager,Fuel & Oil,03/01/13,IJ00017322,22316.00,EMO OIL LIMITED, 
East Lindsey District Council,http://statistics.data.gov.uk/id/local-authority/32UC,Area Working,Materials and Consumables,03/01/13,IJ00017258,6670.00,THE TRACTOR SHOP, 
East Lindsey District Council,http://statistics.data.gov.uk/id/local-authority/32UC,Health Team Leader,Staff Training Expenses,03/01/13,IJ00017253,1090.00,Liz Cornwallis, 
East Lindsey District Council,http://statistics.data.gov.uk/id/local-authority/32UC,TL Property,Water and Sewerage Charges,03/01/13,IJ00017252,5120.75,Louth Market Auctioneers, 
East Lindsey District Council,http://statistics.data.gov.uk/id/local-authority/32UC,Planning & Housing Policy Man,Staff Training Expenses,09/01/13,IJ00015250,795.00,RTPI, 
East Lindsey District Council,http://statistics.data.gov.uk/id/local-authority/32UC,Enforcement Team Leader,Buildings Maintenance - Responsive,10/01/13,IJ00017671,542.87,ALLDREAD MAINTENANCE SERVICES, 
East Lindsey District Council,http://statistics.data.gov.uk/id/local-authority/32UC,Embassy Pool Manager,Other agencies,10/01/13,IJ00017724,5077.07,COMPETITION LINE (UK) LTD, 
East Lindsey District Council,http://statistics.data.gov.uk/id/local-authority/32UC,Capital WIP,Grants and Contributions to Outside Bodies- No Service Recei,10/01/13,IJ00017621,5335.07,SIBJON BUILDERS, 
East Lindsey District Council,http://statistics.data.gov.uk/id/local-authority/32UC,Hsg Private Sector TL,Other Income,10/01/13,IJ00017621,-476.35,SIBJON BUILDERS, 
East Lindsey District Council,http://statistics.data.gov.uk/id/local-authority/32UC,Meridian Facility Manager,Materials and Consumables,10/01/13,IJ00017520,580.95,STOWLIN LTD, 
East Lindsey District Council,http://statistics.data.gov.uk/id/local-authority/32UC,Capital WIP,Grants and Contributions to Outside Bodies- No Service Recei,10/01/13,IJ00017548,5000.00,SPILSBY TOWN COUNCIL, 
East Lindsey District Council,http://statistics.data.gov.uk/id/local-authority/32UC,Policy & Project Manager,Other Miscellaneous Expenses,10/01/13,IJ00017643,4093.48,HERITAGE TRUST OF LINCOLNSHIRE LTD, 
East Lindsey District Council,http://statistics.data.gov.uk/id/local-authority/32UC,TL IT - Network & Comms,Telephones,10/01/13,IJ00017704,2967.41,CABLE & WIRELESS COMMUNICATIONS, 
East Lindsey District Council,http://statistics.data.gov.uk/id/local-authority/32UC,Building Control Partnership,Telephones,10/01/13,IJ00017707,23.49,CABLE & WIRELESS COMMUNICATIONS, 
East Lindsey District Council,http://statistics.data.gov.uk/id/local-authority/32UC,TL IT - Network & Comms,Telephones,10/01/13,IJ00017707,1541.74,CABLE & WIRELESS COMMUNICATIONS, 
East Lindsey District Council,http://statistics.data.gov.uk/id/local-authority/32UC,Corporate Accounting,Other Miscellaneous Expenses,10/01/13,IJ00017701,1256.35,NEOPOST LIMITED, 
East Lindsey District Council,http://statistics.data.gov.uk/id/local-authority/32UC,Capital WIP,Grants and Contributions to Outside Bodies- No Service Recei,10/01/13,IJ00017619,7933.61,M & M GRANTHAM, 
East Lindsey District Council,http://statistics.data.gov.uk/id/local-authority/32UC,Hsg Private Sector TL,Other Income,10/01/13,IJ00017619,-2155.72,M & M GRANTHAM, 
East Lindsey District Council,http://statistics.data.gov.uk/id/local-authority/32UC,Capital WIP,Grants and Contributions to Outside Bodies- No Service Recei,10/01/13,IJ00017620,9671.74,M & M GRANTHAM, 
East Lindsey District Council,http://statistics.data.gov.uk/id/local-authority/32UC,Hsg Private Sector TL,Other Income,10/01/13,IJ00017620,-863.55,M & M GRANTHAM, 
East Lindsey District Council,http://statistics.data.gov.uk/id/local-authority/32UC,Democracy Manager,Postages,10/01/13,IJ00017564,1512.17,ROYAL MAIL, 
East Lindsey District Council,http://statistics.data.gov.uk/id/local-authority/32UC,Debt Recovery TL,Postages,10/01/13,IJ00017705,17.10,ROYAL MAIL, 
East Lindsey District Council,http://statistics.data.gov.uk/id/local-authority/32UC,Development Control,Postages,10/01/13,IJ00017705,312.98,ROYAL MAIL, 
East Lindsey District Council,http://statistics.data.gov.uk/id/local-authority/32UC,Corporate Accounting,Postages,10/01/13,IJ00017705,376.02,ROYAL MAIL, 
East Lindsey District Council,http://statistics.data.gov.uk/id/local-authority/32UC,Corporate Accounting,Postages,10/01/13,IJ00017705,165.72,ROYAL MAIL, 
East Lindsey District Council,http://statistics.data.gov.uk/id/local-authority/32UC,Corporate Accounting,Postages,10/01/13,IJ00017705,977.73,ROYAL MAIL, 
East Lindsey District Council,http://statistics.data.gov.uk/id/local-authority/32UC,Corporate Accounting,Postages,10/01/13,IJ00017705,642.75,ROYAL MAIL, 
East Lindsey District Council,http://statistics.data.gov.uk/id/local-authority/32UC,Corporate Accounting,Postages,10/01/13,IJ00017705,48.55,ROYAL MAIL, 
East Lindsey District Council,http://statistics.data.gov.uk/id/local-authority/32UC,Corporate Accounting,Postages,10/01/13,IJ00017705,25.95,ROYAL MAIL, 
East Lindsey District Council,http://statistics.data.gov.uk/id/local-authority/32UC,Corporate Accounting,Postages,10/01/13,IJ00017705,79.70,ROYAL MAIL, 
East Lindsey District Council,http://statistics.data.gov.uk/id/local-authority/32UC,Debt Recovery TL,Postages,10/01/13,IJ00017710,71.32,ROYAL MAIL, 
East Lindsey District Council,http://statistics.data.gov.uk/id/local-authority/32UC,Corporate Accounting,Postages,10/01/13,IJ00017710,908.93,ROYAL MAIL, 
East Lindsey District Council,http://statistics.data.gov.uk/id/local-authority/32UC,Corporate Accounting,Postages,10/01/13,IJ00017710,354.06,ROYAL MAIL, 
East Lindsey District Council,http://statistics.data.gov.uk/id/local-authority/32UC,Corporate Accounting,Postages,10/01/13,IJ00017710,634.34,ROYAL MAIL, 
East Lindsey District Council,http://statistics.data.gov.uk/id/local-authority/32UC,Corporate Accounting,Postages,10/01/13,IJ00017710,311.48,ROYAL MAIL, 
East Lindsey District Council,http://statistics.data.gov.uk/id/local-authority/32UC,Corporate Accounting,Postages,10/01/13,IJ00017710,28.33,ROYAL MAIL, 
East Lindsey District Council,http://statistics.data.gov.uk/id/local-authority/32UC,Corporate Accounting,Postages,10/01/13,IJ00017710,24.00,ROYAL MAIL, 
East Lindsey District Council,http://statistics.data.gov.uk/id/local-authority/32UC,Corporate Accounting,Postages,10/01/13,IJ00017710,69.93,ROYAL MAIL, 
East Lindsey District Council,http://statistics.data.gov.uk/id/local-authority/32UC,Hsg Advice & Homelessness TL,Rent and Lease Payments,10/01/13,IJ00017529,2413.68,LONGHURST HOMES, 
East Lindsey District Council,http://statistics.data.gov.uk/id/local-authority/32UC,Waste Services Manager,Other agencies,10/01/13,IJ00017717,985.65,GLASS RECYCLING (UK) LTD, 
East Lindsey District Council,http://statistics.data.gov.uk/id/local-authority/32UC,TL IT - System Support,Computer Software Licence Costs,10/01/13,IJ00017560,4210.46,TICKETS.COM, 
East Lindsey District Council,http://statistics.data.gov.uk/id/local-authority/32UC,Commercial Team Leader,Subscriptions to Organisations and Other Bodies,10/01/13,IJ00017659,936.00,CIEH, 
East Lindsey District Council,http://statistics.data.gov.uk/id/local-authority/32UC,Hsg Private Sector TL,Subscriptions to Organisations and Other Bodies,10/01/13,IJ00017659,156.00,CIEH, 
East Lindsey District Council,http://statistics.data.gov.uk/id/local-authority/32UC,Environment Team Leader,Subscriptions to Organisations and Other Bodies,10/01/13,IJ00017659,468.00,CIEH, 
East Lindsey District Council,http://statistics.data.gov.uk/id/local-authority/32UC,Health Team Leader,Staff Training Expenses,10/01/13,IJ00017690,4800.00,LOUGHBOROUGH COLLEGE, 
East Lindsey District Council,http://statistics.data.gov.uk/id/local-authority/32UC,Hsg Bens Quality Assurance TL,Other Miscellaneous Expenses,10/01/13,IJ00017631,62.13,ALLPAY NET LTD, 
East Lindsey District Council,http://statistics.data.gov.uk/id/local-authority/32UC,Council Tax TL,Other Miscellaneous Expenses,10/01/13,IJ00017631,3077.80,ALLPAY NET LTD, 
East Lindsey District Council,http://statistics.data.gov.uk/id/local-authority/32UC,Hsg Bens Quality Assurance TL,Other Miscellaneous Expenses,10/01/13,IJ00017639,71.62,ALLPAY NET LTD, 
East Lindsey District Council,http://statistics.data.gov.uk/id/local-authority/32UC,Council Tax TL,Other Miscellaneous Expenses,10/01/13,IJ00017639,3162.81,ALLPAY NET LTD, 
East Lindsey District Council,http://statistics.data.gov.uk/id/local-authority/32UC,Council Tax TL,Other Miscellaneous Expenses,10/01/13,IJ00017639,4.00,ALLPAY NET LTD, 
East Lindsey District Council,http://statistics.data.gov.uk/id/local-authority/32UC,Environment Team Leader,Furniture and Equipment,10/01/13,IJ00017587,747.00,CAMPBELL ASSOCIATES, 
East Lindsey District Council,http://statistics.data.gov.uk/id/local-authority/32UC,Theatre Manager,Film and Entertainment Costs,10/01/13,IJ00017698,4760.16,PERFORMING RIGHT SOCIETY LTD, 
East Lindsey District Council,http://statistics.data.gov.uk/id/local-authority/32UC,Capital WIP,Grants and Contributions to Outside Bodies- No Service Recei,10/01/13,IJ00017617,4616.36,OBAM STAIRLIFTS, 
East Lindsey District Council,http://statistics.data.gov.uk/id/local-authority/32UC,Hsg Private Sector TL,Other Income,10/01/13,IJ00017617,-763.63,OBAM STAIRLIFTS, 
East Lindsey District Council,http://statistics.data.gov.uk/id/local-authority/32UC,Embassy Pool Manager,Buildings Maintenance - Responsive,10/01/13,IJ00017678,642.00,ESG POOL VENTILATION LTD, 
East Lindsey District Council,http://statistics.data.gov.uk/id/local-authority/32UC,TL Property,Electricity,10/01/13,IJ00017609,907.20,SKEG GRAIN LTD, 
East Lindsey District Council,http://statistics.data.gov.uk/id/local-authority/32UC,Waste Services Manager,Agency Staff,10/01/13,IJ00017642,2297.35,CLOSE INVOICE FINANCE LTD, 
East Lindsey District Council,http://statistics.data.gov.uk/id/local-authority/32UC,Meridian Facility Manager,Buildings Maintenance - Programmed,10/01/13,IJ00017685,184.35,THYSSENKRUPP ELEVATOR UK LTD, 
East Lindsey District Council,http://statistics.data.gov.uk/id/local-authority/32UC,Policy & Project Manager,Buildings Maintenance - Programmed,10/01/13,IJ00017685,184.35,THYSSENKRUPP ELEVATOR UK LTD, 
East Lindsey District Council,http://statistics.data.gov.uk/id/local-authority/32UC,TL Property,Buildings Maintenance - Programmed,10/01/13,IJ00017685,233.40,THYSSENKRUPP ELEVATOR UK LTD, 
East Lindsey District Council,http://statistics.data.gov.uk/id/local-authority/32UC,Technical Services Team Leader,Electricity,10/01/13,IJ00017601,1981.35,E.ON, 
East Lindsey District Council,http://statistics.data.gov.uk/id/local-authority/32UC,Enforcement Team Leader,Electricity,10/01/13,IJ00017601,6.09,E.ON, 
East Lindsey District Council,http://statistics.data.gov.uk/id/local-authority/32UC,Enforcement Team Leader,Electricity,10/01/13,IJ00017601,19.12,E.ON, 
East Lindsey District Council,http://statistics.data.gov.uk/id/local-authority/32UC,Enforcement Team Leader,Electricity,10/01/13,IJ00017601,8.20,E.ON, 
East Lindsey District Council,http://statistics.data.gov.uk/id/local-authority/32UC,Enforcement Team Leader,Electricity,10/01/13,IJ00017601,17.43,E.ON, 
East Lindsey District Council,http://statistics.data.gov.uk/id/local-authority/32UC,Enforcement Team Leader,Electricity,10/01/13,IJ00017601,39.57,E.ON, 
East Lindsey District Council,http://statistics.data.gov.uk/id/local-authority/32UC,Enforcement Team Leader,Electricity,10/01/13,IJ00017601,19.23,E.ON, 
East Lindsey District Council,http://statistics.data.gov.uk/id/local-authority/32UC,Enforcement Team Leader,Electricity,10/01/13,IJ00017601,13.19,E.ON, 
East Lindsey District Council,http://statistics.data.gov.uk/id/local-authority/32UC,Service Development Manager,Electricity,10/01/13,IJ00017601,6.40,E.ON, 
East Lindsey District Council,http://statistics.data.gov.uk/id/local-authority/32UC,Technical Services Team Leader,Electricity,10/01/13,IJ00017602,543.36,E.ON, 
East Lindsey District Council,http://statistics.data.gov.uk/id/local-authority/32UC,TL Property,Electricity,10/01/13,IJ00017602,12.14,E.ON, 
East Lindsey District Council,http://statistics.data.gov.uk/id/local-authority/32UC,Enforcement Team Leader,Electricity,10/01/13,IJ00017602,7.79,E.ON, 
East Lindsey District Council,http://statistics.data.gov.uk/id/local-authority/32UC,Service Development Manager,Electricity,10/01/13,IJ00017602,12.14,E.ON, 
East Lindsey District Council,http://statistics.data.gov.uk/id/local-authority/32UC,Technical Services Team Leader,Electricity,10/01/13,IJ00017602,6.07,E.ON, 
East Lindsey District Council,http://statistics.data.gov.uk/id/local-authority/32UC,Enforcement Team Leader,Electricity,10/01/13,IJ00017602,6.07,E.ON, 
East Lindsey District Council,http://statistics.data.gov.uk/id/local-authority/32UC,Service Development Manager,Electricity,10/01/13,IJ00017602,45.08,E.ON, 
East Lindsey District Council,http://statistics.data.gov.uk/id/local-authority/32UC,Development Control,Advertising - Events,10/01/13,IJ00017519,569.00,NORTHCLIFFE MEDIA LIMITED, 
East Lindsey District Council,http://statistics.data.gov.uk/id/local-authority/32UC,Meridian Facility Manager,Purchase Of Goods For Resale,10/01/13,IJ00017574,2343.54,SRS LEISURE, 
East Lindsey District Council,http://statistics.data.gov.uk/id/local-authority/32UC,Capital WIP,Works to Buildings (main Contractor),10/01/13,IJ00017691,6610.00,PELL PLANT HIRE LTD, 
East Lindsey District Council,http://statistics.data.gov.uk/id/local-authority/32UC,Capital WIP,Works to Buildings (main Contractor),10/01/13,IJ00017692,7815.00,PELL PLANT HIRE LTD, 
East Lindsey District Council,http://statistics.data.gov.uk/id/local-authority/32UC,Democracy Manager,Grants and Contributions to Outside Bodies- No Service Recei,10/01/13,IJ00017551,1000.00,ALIVE & KICKING, 
East Lindsey District Council,http://statistics.data.gov.uk/id/local-authority/32UC,Meridian Facility Manager,Buildings Maintenance - Programmed,10/01/13,IJ00017684,1577.00,AEGIS SERVICE & AFTERCARE LTD, 
East Lindsey District Council,http://statistics.data.gov.uk/id/local-authority/32UC,Waste Services Manager,Agency Staff,10/01/13,IJ00017582,754.00,LINCS MOTORHOMES LTD, 
East Lindsey District Council,http://statistics.data.gov.uk/id/local-authority/32UC,Development Control,Agency Staff,10/01/13,IJ00017580,4953.69,LGS LIMITED, 
East Lindsey District Council,http://statistics.data.gov.uk/id/local-authority/32UC,Area Working,Agency Staff,10/01/13,IJ00017578,739.38,THE WORKSHOP (WISBECH) LIMITED, 
East Lindsey District Council,http://statistics.data.gov.uk/id/local-authority/32UC,Area Working,Agency Staff,10/01/13,IJ00017578,739.37,THE WORKSHOP (WISBECH) LIMITED, 
East Lindsey District Council,http://statistics.data.gov.uk/id/local-authority/32UC,Customer Services Manager,Payments to Bodies in Respect of Income Collected,10/01/13,IJ00017556,1163.42,NATIONAL EXPRESS CREDIT CONTROL DEPT, 
East Lindsey District Council,http://statistics.data.gov.uk/id/local-authority/32UC,Customer Services Manager,Payments to Bodies in Respect of Income Collected,10/01/13,IJ00017556,1343.74,NATIONAL EXPRESS CREDIT CONTROL DEPT, 
East Lindsey District Council,http://statistics.data.gov.uk/id/local-authority/32UC,Customer Services Manager,Payments to Bodies in Respect of Income Collected,10/01/13,IJ00017556,472.31,NATIONAL EXPRESS CREDIT CONTROL DEPT, 
East Lindsey District Council,http://statistics.data.gov.uk/id/local-authority/32UC,Customer Services Manager,Payments to Bodies in Respect of Income Collected,10/01/13,IJ00017556,11.34,NATIONAL EXPRESS CREDIT CONTROL DEPT, 
East Lindsey District Council,http://statistics.data.gov.uk/id/local-authority/32UC,Council Tax TL,Court Costs,10/01/13,IJ00017676,1092.00,CENTRAL FINANCE UNIT, 
East Lindsey District Council,http://statistics.data.gov.uk/id/local-authority/32UC,Debt Recovery TL,Court Costs,10/01/13,IJ00017676,174.00,CENTRAL FINANCE UNIT, 
East Lindsey District Council,http://statistics.data.gov.uk/id/local-authority/32UC,Corporate Accounting,Compass Point Business Services,10/01/13,IJ00017670,426944.58,COMPASS POINT BUSINESS SERVICES, 
East Lindsey District Council,http://statistics.data.gov.uk/id/local-authority/32UC,Hsg Benefits Assessments TL,Compass Point Business Services,10/01/13,IJ00017695,53317.50,COMPASS POINT BUSINESS SERVICES, 
East Lindsey District Council,http://statistics.data.gov.uk/id/local-authority/32UC,Democracy Manager,Grants and Contributions to Outside Bodies- No Service Recei,10/01/13,IJ00017687,2000.00,HOLTON LE CLAY MERC, 
East Lindsey District Council,http://statistics.data.gov.uk/id/local-authority/32UC,Area Working,Maintenance,10/01/13,IJ00017583,2178.69,GREAT COATES MOTORS LTD, 
East Lindsey District Council,http://statistics.data.gov.uk/id/local-authority/32UC,Area Working,Maintenance,10/01/13,IJ00017584,1749.56,GREAT COATES MOTORS LTD, 
East Lindsey District Council,http://statistics.data.gov.uk/id/local-authority/32UC,Area Working,Maintenance,10/01/13,IJ00017585,1692.70,GREAT COATES MOTORS LTD, 
East Lindsey District Council,http://statistics.data.gov.uk/id/local-authority/32UC,TL Property,Water and Sewerage Charges,10/01/13,IJ00017612,57.79,ANGLIAN WATER, 
East Lindsey District Council,http://statistics.data.gov.uk/id/local-authority/32UC,Public Conveniences,Water and Sewerage Charges,10/01/13,IJ00017612,619.59,ANGLIAN WATER, 
East Lindsey District Council,http://statistics.data.gov.uk/id/local-authority/32UC,Business Development Manager,Water and Sewerage Charges,10/01/13,IJ00017614,2488.21,ANGLIAN WATER, 
East Lindsey District Council,http://statistics.data.gov.uk/id/local-authority/32UC,Embassy Pool Manager,Water and Sewerage Charges,10/01/13,IJ00017615,943.48,ANGLIAN WATER, 
East Lindsey District Council,http://statistics.data.gov.uk/id/local-authority/32UC,Development Control,Professional & Contractors Fees,10/01/13,IJ00017590,8009.17,ENPLAN UK LIMITED, 
East Lindsey District Council,http://statistics.data.gov.uk/id/local-authority/32UC,Hsg Advice & Homelessness TL,Other Miscellaneous Expenses,10/01/13,IJ00017526,1150.00,EASY CLEAN MARSHCHAPEL LTD, 
East Lindsey District Council,http://statistics.data.gov.uk/id/local-authority/32UC,Policy & Project Manager,Buildings Maintenance - Programmed,10/01/13,IJ00017603,549.26,A.P. SERVICES (LOUTH) LIMITED, 
East Lindsey District Council,http://statistics.data.gov.uk/id/local-authority/32UC,TL Property,Buildings Maintenance - Responsive,10/01/13,IJ00017673,512.20,AMBER LOCKSMITHS LIMITED, 
East Lindsey District Council,http://statistics.data.gov.uk/id/local-authority/32UC,TL Partnerships & Grants,Other agencies,10/01/13,IJ00017716,12500.00,LINCOLNSHIRE CVS, 
East Lindsey District Council,http://statistics.data.gov.uk/id/local-authority/32UC,Business Development Manager,Other Miscellaneous Expenses,10/01/13,IJ00017655,640.00,FRED MARKETING LTD, 
East Lindsey District Council,http://statistics.data.gov.uk/id/local-authority/32UC,Business Development Manager,Grants and Contributions- Where a Service is Received,10/01/13,IJ00017655,1570.00,FRED MARKETING LTD, 
East Lindsey District Council,http://statistics.data.gov.uk/id/local-authority/32UC,Capital WIP,Grants and Contributions to Outside Bodies- No Service Recei,10/01/13,IJ00017618,600.00,REDACTED PERSONAL INFORMATION,REDACT
East Lindsey District Council,http://statistics.data.gov.uk/id/local-authority/32UC,Public Conveniences,Buildings Maintenance - Responsive,10/01/13,IJ00017708,1911.25,C AND S CHAMBERLAIN LTD, 
East Lindsey District Council,http://statistics.data.gov.uk/id/local-authority/32UC,TL IT - Network & Comms,Telephones,17/01/13,IJ00017747,2312.63,BT PLC, 
East Lindsey District Council,http://statistics.data.gov.uk/id/local-authority/32UC,Waste Services Manager,Tyres,17/01/13,IJ00017729,773.24,B A BUSH & SON LIMITED, 
East Lindsey District Council,http://statistics.data.gov.uk/id/local-authority/32UC,Waste Services Manager,Tyres,17/01/13,IJ00017881,1132.68,B A BUSH & SON LIMITED, 
East Lindsey District Council,http://statistics.data.gov.uk/id/local-authority/32UC,Area Working,Professional & Contractors Fees,17/01/13,IJ00017991,510.00,SID DENNIS & SONS LTD, 
East Lindsey District Council,http://statistics.data.gov.uk/id/local-authority/32UC,TL Property,Buildings Maintenance - Responsive,17/01/13,IJ00017893,594.01,HARLITE INSTALLATIONS LTD, 
East Lindsey District Council,http://statistics.data.gov.uk/id/local-authority/32UC,Technical Services Team Leader,Buildings Maintenance - Responsive,17/01/13,IJ00017893,4364.41,HARLITE INSTALLATIONS LTD, 
East Lindsey District Council,http://statistics.data.gov.uk/id/local-authority/32UC,TL Property,Buildings Maintenance - Responsive,17/01/13,IJ00017893,37.66,HARLITE INSTALLATIONS LTD, 
East Lindsey District Council,http://statistics.data.gov.uk/id/local-authority/32UC,Enforcement Team Leader,Buildings Maintenance - Responsive,17/01/13,IJ00017893,817.88,HARLITE INSTALLATIONS LTD, 
East Lindsey District Council,http://statistics.data.gov.uk/id/local-authority/32UC,Enforcement Team Leader,Buildings Maintenance - Responsive,17/01/13,IJ00017893,38.76,HARLITE INSTALLATIONS LTD, 
East Lindsey District Council,http://statistics.data.gov.uk/id/local-authority/32UC,Enforcement Team Leader,Buildings Maintenance - Responsive,17/01/13,IJ00017893,38.12,HARLITE INSTALLATIONS LTD, 
East Lindsey District Council,http://statistics.data.gov.uk/id/local-authority/32UC,Horncastle Pool Manager,Cleaning Contract,17/01/13,IJ00017869,591.34,STOWLIN LTD, 
East Lindsey District Council,http://statistics.data.gov.uk/id/local-authority/32UC,Hsg Private Sector TL,Other Income,17/01/13,IJ00017858,2869.66,COTTS BUILDERS AND CONTRACTORS, 
East Lindsey District Council,http://statistics.data.gov.uk/id/local-authority/32UC,Corporate Accounting,Telephones,17/01/13,IJ00017797,177.54,VODAFONE CORPORATE LIMITED, 
East Lindsey District Council,http://statistics.data.gov.uk/id/local-authority/32UC,Communications Manager,Telephones,17/01/13,IJ00017797,28.77,VODAFONE CORPORATE LIMITED, 
East Lindsey District Council,http://statistics.data.gov.uk/id/local-authority/32UC,Communications Manager,Telephones,17/01/13,IJ00017797,16.16,VODAFONE CORPORATE LIMITED, 
East Lindsey District Council,http://statistics.data.gov.uk/id/local-authority/32UC,TL Partnerships & Grants,Telephones,17/01/13,IJ00017797,9.33,VODAFONE CORPORATE LIMITED, 
East Lindsey District Council,http://statistics.data.gov.uk/id/local-authority/32UC,Housing Support TL,Telephones,17/01/13,IJ00017797,248.21,VODAFONE CORPORATE LIMITED, 
East Lindsey District Council,http://statistics.data.gov.uk/id/local-authority/32UC,Sports Development,Telephones,17/01/13,IJ00017797,60.66,VODAFONE CORPORATE LIMITED, 
East Lindsey District Council,http://statistics.data.gov.uk/id/local-authority/32UC,Service Development Manager,Telephones,17/01/13,IJ00017797,42.94,VODAFONE CORPORATE LIMITED, 
East Lindsey District Council,http://statistics.data.gov.uk/id/local-authority/32UC,Service Development Manager,Telephones,17/01/13,IJ00017797,216.57,VODAFONE CORPORATE LIMITED, 
East Lindsey District Council,http://statistics.data.gov.uk/id/local-authority/32UC,Building Control Partnership,Telephones,17/01/13,IJ00017797,194.73,VODAFONE CORPORATE LIMITED, 
East Lindsey District Council,http://statistics.data.gov.uk/id/local-authority/32UC,Building Control,Telephones,17/01/13,IJ00017797,3.34,VODAFONE CORPORATE LIMITED, 
East Lindsey District Council,http://statistics.data.gov.uk/id/local-authority/32UC,Business Development Manager,Telephones,17/01/13,IJ00017797,2.00,VODAFONE CORPORATE LIMITED, 
East Lindsey District Council,http://statistics.data.gov.uk/id/local-authority/32UC,Business Development Manager,Telephones,17/01/13,IJ00017797,13.81,VODAFONE CORPORATE LIMITED, 
East Lindsey District Council,http://statistics.data.gov.uk/id/local-authority/32UC,Business Innovation Manager,Telephones,17/01/13,IJ00017797,1.67,VODAFONE CORPORATE LIMITED, 
East Lindsey District Council,http://statistics.data.gov.uk/id/local-authority/32UC,Cultural & Related Services,Telephones,17/01/13,IJ00017797,10.28,VODAFONE CORPORATE LIMITED, 
East Lindsey District Council,http://statistics.data.gov.uk/id/local-authority/32UC,Cultural & Related Services,Telephones,17/01/13,IJ00017797,10.84,VODAFONE CORPORATE LIMITED, 
East Lindsey District Council,http://statistics.data.gov.uk/id/local-authority/32UC,Commercial Team Leader,Telephones,17/01/13,IJ00017797,65.24,VODAFONE CORPORATE LIMITED, 
East Lindsey District Council,http://statistics.data.gov.uk/id/local-authority/32UC,Commercial Team Leader,Telephones,17/01/13,IJ00017797,11.24,VODAFONE CORPORATE LIMITED, 
East Lindsey District Council,http://statistics.data.gov.uk/id/local-authority/32UC,Chief Executive,Telephones,17/01/13,IJ00017797,16.98,VODAFONE CORPORATE LIMITED, 
East Lindsey District Council,http://statistics.data.gov.uk/id/local-authority/32UC,Chief Executive,Telephones,17/01/13,IJ00017797,12.77,VODAFONE CORPORATE LIMITED, 
East Lindsey District Council,http://statistics.data.gov.uk/id/local-authority/32UC,Chief Executive,Telephones,17/01/13,IJ00017797,38.95,VODAFONE CORPORATE LIMITED, 
East Lindsey District Council,http://statistics.data.gov.uk/id/local-authority/32UC,Democracy Manager,Telephones,17/01/13,IJ00017797,41.52,VODAFONE CORPORATE LIMITED, 
East Lindsey District Council,http://statistics.data.gov.uk/id/local-authority/32UC,Development Control,Telephones,17/01/13,IJ00017797,10.97,VODAFONE CORPORATE LIMITED, 
East Lindsey District Council,http://statistics.data.gov.uk/id/local-authority/32UC,Enforcement Team Leader,Telephones,17/01/13,IJ00017797,18.33,VODAFONE CORPORATE LIMITED, 
East Lindsey District Council,http://statistics.data.gov.uk/id/local-authority/32UC,Enforcement Team Leader,Telephones,17/01/13,IJ00017797,32.06,VODAFONE CORPORATE LIMITED, 
East Lindsey District Council,http://statistics.data.gov.uk/id/local-authority/32UC,Enforcement Team Leader,Telephones,17/01/13,IJ00017797,31.06,VODAFONE CORPORATE LIMITED, 
East Lindsey District Council,http://statistics.data.gov.uk/id/local-authority/32UC,Enforcement Team Leader,Telephones,17/01/13,IJ00017797,70.73,VODAFONE CORPORATE LIMITED, 
East Lindsey District Council,http://statistics.data.gov.uk/id/local-authority/32UC,Enforcement Team Leader,Telephones,17/01/13,IJ00017797,391.50,VODAFONE CORPORATE LIMITED, 
East Lindsey District Council,http://statistics.data.gov.uk/id/local-authority/32UC,Environment Team Leader,Telephones,17/01/13,IJ00017797,165.80,VODAFONE CORPORATE LIMITED, 
East Lindsey District Council,http://statistics.data.gov.uk/id/local-authority/32UC,Service Development Managers,Telephones,17/01/13,IJ00017797,9.88,VODAFONE CORPORATE LIMITED, 
East Lindsey District Council,http://statistics.data.gov.uk/id/local-authority/32UC,Theatre Manager,Telephones,17/01/13,IJ00017797,36.02,VODAFONE CORPORATE LIMITED, 
East Lindsey District Council,http://statistics.data.gov.uk/id/local-authority/32UC,Health Team Leader,Telephones,17/01/13,IJ00017797,29.82,VODAFONE CORPORATE LIMITED, 
East Lindsey District Council,http://statistics.data.gov.uk/id/local-authority/32UC,Health Team Leader,Telephones,17/01/13,IJ00017797,7.54,VODAFONE CORPORATE LIMITED, 
East Lindsey District Council,http://statistics.data.gov.uk/id/local-authority/32UC,Health Team Leader,Telephones,17/01/13,IJ00017797,44.24,VODAFONE CORPORATE LIMITED, 
East Lindsey District Council,http://statistics.data.gov.uk/id/local-authority/32UC,Health Team Leader,Telephones,17/01/13,IJ00017797,3.65,VODAFONE CORPORATE LIMITED, 
East Lindsey District Council,http://statistics.data.gov.uk/id/local-authority/32UC,Hsg Advice & Homelessness TL,Telephones,17/01/13,IJ00017797,6.70,VODAFONE CORPORATE LIMITED, 
East Lindsey District Council,http://statistics.data.gov.uk/id/local-authority/32UC,Hsg Advice & Homelessness TL,Telephones,17/01/13,IJ00017797,34.93,VODAFONE CORPORATE LIMITED, 
East Lindsey District Council,http://statistics.data.gov.uk/id/local-authority/32UC,Hsg Private Sector TL,Telephones,17/01/13,IJ00017797,5.99,VODAFONE CORPORATE LIMITED, 
East Lindsey District Council,http://statistics.data.gov.uk/id/local-authority/32UC,Hsg Private Sector TL,Telephones,17/01/13,IJ00017797,3.77,VODAFONE CORPORATE LIMITED, 
East Lindsey District Council,http://statistics.data.gov.uk/id/local-authority/32UC,Hsg Private Sector TL,Telephones,17/01/13,IJ00017797,42.54,VODAFONE CORPORATE LIMITED, 
East Lindsey District Council,http://statistics.data.gov.uk/id/local-authority/32UC,Hsg Private Sector TL,Telephones,17/01/13,IJ00017797,1.67,VODAFONE CORPORATE LIMITED, 
East Lindsey District Council,http://statistics.data.gov.uk/id/local-authority/32UC,Hsg Private Sector TL,Telephones,17/01/13,IJ00017797,10.21,VODAFONE CORPORATE LIMITED, 
East Lindsey District Council,http://statistics.data.gov.uk/id/local-authority/32UC,Housing Support TL,Telephones,17/01/13,IJ00017797,392.36,VODAFONE CORPORATE LIMITED, 
East Lindsey District Council,http://statistics.data.gov.uk/id/local-authority/32UC,Housing Support TL,Telephones,17/01/13,IJ00017797,1.81,VODAFONE CORPORATE LIMITED, 
East Lindsey District Council,http://statistics.data.gov.uk/id/local-authority/32UC,Housing Support TL,Telephones,17/01/13,IJ00017797,9.17,VODAFONE CORPORATE LIMITED, 
East Lindsey District Council,http://statistics.data.gov.uk/id/local-authority/32UC,Meridian Facility Manager,Telephones,17/01/13,IJ00017797,1.97,VODAFONE CORPORATE LIMITED, 
East Lindsey District Council,http://statistics.data.gov.uk/id/local-authority/32UC,Meridian Facility Manager,Telephones,17/01/13,IJ00017797,6.18,VODAFONE CORPORATE LIMITED, 
East Lindsey District Council,http://statistics.data.gov.uk/id/local-authority/32UC,Planning & Housing Policy Manager,Telephones,17/01/13,IJ00017797,9.86,VODAFONE CORPORATE LIMITED, 
East Lindsey District Council,http://statistics.data.gov.uk/id/local-authority/32UC,Planning & Housing Policy Manager,Telephones,17/01/13,IJ00017797,10.33,VODAFONE CORPORATE LIMITED, 
East Lindsey District Council,http://statistics.data.gov.uk/id/local-authority/32UC,Policy & Project Manager,Telephones,17/01/13,IJ00017797,21.34,VODAFONE CORPORATE LIMITED, 
East Lindsey District Council,http://statistics.data.gov.uk/id/local-authority/32UC,Policy & Project Manager,Telephones,17/01/13,IJ00017797,65.86,VODAFONE CORPORATE LIMITED, 
East Lindsey District Council,http://statistics.data.gov.uk/id/local-authority/32UC,TL Property,Telephones,17/01/13,IJ00017797,19.70,VODAFONE CORPORATE LIMITED, 
East Lindsey District Council,http://statistics.data.gov.uk/id/local-authority/32UC,Service Development Managers,Telephones,17/01/13,IJ00017797,14.07,VODAFONE CORPORATE LIMITED, 
East Lindsey District Council,http://statistics.data.gov.uk/id/local-authority/32UC,Service Development Managers,Telephones,17/01/13,IJ00017797,9.43,VODAFONE CORPORATE LIMITED, 
East Lindsey District Council,http://statistics.data.gov.uk/id/local-authority/32UC,Strategic Director (SD),Telephones,17/01/13,IJ00017797,10.35,VODAFONE CORPORATE LIMITED, 
East Lindsey District Council,http://statistics.data.gov.uk/id/local-authority/32UC,Sports Centre Manager,Telephones,17/01/13,IJ00017797,20.21,VODAFONE CORPORATE LIMITED, 
East Lindsey District Council,http://statistics.data.gov.uk/id/local-authority/32UC,Sports Development,Telephones,17/01/13,IJ00017797,21.27,VODAFONE CORPORATE LIMITED, 
East Lindsey District Council,http://statistics.data.gov.uk/id/local-authority/32UC,Sports Development,Telephones,17/01/13,IJ00017797,1.67,VODAFONE CORPORATE LIMITED, 
East Lindsey District Council,http://statistics.data.gov.uk/id/local-authority/32UC,BM Sports Facilities,Telephones,17/01/13,IJ00017797,7.14,VODAFONE CORPORATE LIMITED, 
East Lindsey District Council,http://statistics.data.gov.uk/id/local-authority/32UC,Waste Services Manager,Telephones,17/01/13,IJ00017797,70.73,VODAFONE CORPORATE LIMITED, 
East Lindsey District Council,http://statistics.data.gov.uk/id/local-authority/32UC,Technical Services Team Leader,Telephones,17/01/13,IJ00017797,7.23,VODAFONE CORPORATE LIMITED, 
East Lindsey District Council,http://statistics.data.gov.uk/id/local-authority/32UC,Technical Services Team Leader,Telephones,17/01/13,IJ00017797,197.55,VODAFONE CORPORATE LIMITED, 
East Lindsey District Council,http://statistics.data.gov.uk/id/local-authority/32UC,Technical Services Team Leader,Telephones,17/01/13,IJ00017797,4.28,VODAFONE CORPORATE LIMITED, 
East Lindsey District Council,http://statistics.data.gov.uk/id/local-authority/32UC,Theatre Manager,Telephones,17/01/13,IJ00017797,1.67,VODAFONE CORPORATE LIMITED, 
East Lindsey District Council,http://statistics.data.gov.uk/id/local-authority/32UC,Theatre Manager,Telephones,17/01/13,IJ00017797,12.63,VODAFONE CORPORATE LIMITED, 
East Lindsey District Council,http://statistics.data.gov.uk/id/local-authority/32UC,Waste Services Manager,Telephones,17/01/13,IJ00017797,111.58,VODAFONE CORPORATE LIMITED, 
East Lindsey District Council,http://statistics.data.gov.uk/id/local-authority/32UC,Area Working,Telephones,17/01/13,IJ00017797,25.93,VODAFONE CORPORATE LIMITED, 
East Lindsey District Council,http://statistics.data.gov.uk/id/local-authority/32UC,Improvement & Development Mngr,Telephones,17/01/13,IJ00017797,42.94,VODAFONE CORPORATE LIMITED, 
East Lindsey District Council,http://statistics.data.gov.uk/id/local-authority/32UC,Improvement & Development Mngr,Telephones,17/01/13,IJ00017797,85.25,VODAFONE CORPORATE LIMITED, 
East Lindsey District Council,http://statistics.data.gov.uk/id/local-authority/32UC,Sports Development,Telephones,17/01/13,IJ00017797,5.01,VODAFONE CORPORATE LIMITED, 
East Lindsey District Council,http://statistics.data.gov.uk/id/local-authority/32UC,Cultural & Related Services,Telephones,17/01/13,IJ00017797,25.54,VODAFONE CORPORATE LIMITED, 
East Lindsey District Council,http://statistics.data.gov.uk/id/local-authority/32UC,Area Working,Telephones,17/01/13,IJ00017797,5.53,VODAFONE CORPORATE LIMITED, 
East Lindsey District Council,http://statistics.data.gov.uk/id/local-authority/32UC,TL Property,Buildings Maintenance - Programmed,17/01/13,IJ00017942,2246.00,EAGLE STRUCTURAL LTD, 
East Lindsey District Council,http://statistics.data.gov.uk/id/local-authority/32UC,Debt Recovery TL,Postages,17/01/13,IJ00017769,54.55,ROYAL MAIL, 
East Lindsey District Council,http://statistics.data.gov.uk/id/local-authority/32UC,Development Control,Postages,17/01/13,IJ00017769,513.29,ROYAL MAIL, 
East Lindsey District Council,http://statistics.data.gov.uk/id/local-authority/32UC,Corporate Accounting,Postages,17/01/13,IJ00017769,1021.04,ROYAL MAIL, 
East Lindsey District Council,http://statistics.data.gov.uk/id/local-authority/32UC,Corporate Accounting,Postages,17/01/13,IJ00017769,237.98,ROYAL MAIL, 
East Lindsey District Council,http://statistics.data.gov.uk/id/local-authority/32UC,Corporate Accounting,Postages,17/01/13,IJ00017769,716.52,ROYAL MAIL, 
East Lindsey District Council,http://statistics.data.gov.uk/id/local-authority/32UC,Corporate Accounting,Postages,17/01/13,IJ00017769,327.92,ROYAL MAIL, 
East Lindsey District Council,http://statistics.data.gov.uk/id/local-authority/32UC,Corporate Accounting,Postages,17/01/13,IJ00017769,47.51,ROYAL MAIL, 
East Lindsey District Council,http://statistics.data.gov.uk/id/local-authority/32UC,Corporate Accounting,Postages,17/01/13,IJ00017769,17.47,ROYAL MAIL, 
East Lindsey District Council,http://statistics.data.gov.uk/id/local-authority/32UC,Corporate Accounting,Postages,17/01/13,IJ00017769,368.87,ROYAL MAIL, 
East Lindsey District Council,http://statistics.data.gov.uk/id/local-authority/32UC,Admin Support Team,Other Miscellaneous Expenses,17/01/13,IJ00017843,1183.57,VENDING ENTERPRISES, 
East Lindsey District Council,http://statistics.data.gov.uk/id/local-authority/32UC,Audit Manager,Agency Staff,17/01/13,IJ00017763,9400.00,LINCOLNSHIRE COUNTY COUNCIL, 
East Lindsey District Council,http://statistics.data.gov.uk/id/local-authority/32UC,Policy & Project Manager,Grants and Contributions to Outside Bodies- No Service Recei,17/01/13,IJ00017981,30000.00,LINCOLNSHIRE COUNTY COUNCIL, 
East Lindsey District Council,http://statistics.data.gov.uk/id/local-authority/32UC,TL Property,Buildings Maintenance - Responsive,17/01/13,IJ00017912,512.58,SEYMOUR & CASTLE LTD, 
East Lindsey District Council,http://statistics.data.gov.uk/id/local-authority/32UC,Sports Centre Manager,Buildings Maintenance - Programmed,17/01/13,IJ00017914,505.62,SEYMOUR & CASTLE LTD, 
East Lindsey District Council,http://statistics.data.gov.uk/id/local-authority/32UC,Enforcement Team Leader,Other Miscellaneous Expenses,17/01/13,IJ00017850,1177.90,NEW AUTO LIMITED, 
East Lindsey District Council,http://statistics.data.gov.uk/id/local-authority/32UC,TL IT - System Support,Computer Software Licence Costs,17/01/13,IJ00017744,553.00,CROWN COMPUTING LIMITED, 
East Lindsey District Council,http://statistics.data.gov.uk/id/local-authority/32UC,Communications Manager,Advertising - Legal And Public,17/01/13,IJ00017853,4347.00,DESIGN BY DISTRACTION, 
East Lindsey District Council,http://statistics.data.gov.uk/id/local-authority/32UC,BALANCE  SHEET,Payroll Sacrifice Nursery Voucher,17/01/13,IJ00017861,2941.00,SODEXHO, 
East Lindsey District Council,http://statistics.data.gov.uk/id/local-authority/32UC,Meridian Facility Manager,Buildings Maintenance - Programmed,17/01/13,IJ00017950,2650.00,LOYAL GROVE LEISURE, 
East Lindsey District Council,http://statistics.data.gov.uk/id/local-authority/32UC,Embassy Pool Manager,Buildings Maintenance - Programmed,17/01/13,IJ00017951,1604.00,LOYAL GROVE LEISURE, 
East Lindsey District Council,http://statistics.data.gov.uk/id/local-authority/32UC,Waste Services Manager,Computer Software Purchase,17/01/13,IJ00017762,2945.82,SIEMENS FINANCIAL SERVICES LTD, 
East Lindsey District Council,http://statistics.data.gov.uk/id/local-authority/32UC,Embassy Pool Manager,Buildings Maintenance - Programmed,17/01/13,IJ00017952,754.35,ESG POOL VENTILATION LTD, 
East Lindsey District Council,http://statistics.data.gov.uk/id/local-authority/32UC,Meridian Facility Manager,Other Miscellaneous Expenses,17/01/13,IJ00017789,9570.47,LIFE FITNESS, 
East Lindsey District Council,http://statistics.data.gov.uk/id/local-authority/32UC,Service Development Manager,Other Private Contractors,17/01/13,IJ00017777,1200.85,CONINGSBY TOWN COUNCIL, 
East Lindsey District Council,http://statistics.data.gov.uk/id/local-authority/32UC,Meridian Facility Manager,Materials and Consumables,17/01/13,IJ00017518,510.00,VISION PLUS, 
East Lindsey District Council,http://statistics.data.gov.uk/id/local-authority/32UC,Waste Services Manager,Agency Staff,17/01/13,IJ00017874,2585.92,CLOSE INVOICE FINANCE LTD, 
East Lindsey District Council,http://statistics.data.gov.uk/id/local-authority/32UC,Policy & Project Manager,Professional & Contractors Fees,17/01/13,IJ00017955,754.32,JOHN MOORE SECURITY LTD, 
East Lindsey District Council,http://statistics.data.gov.uk/id/local-authority/32UC,Planning & Housing Policy Manager,Overtime,17/01/13,IJ00017799,795.00,YORKSHIRE CONFERENCE SERIES, 
East Lindsey District Council,http://statistics.data.gov.uk/id/local-authority/32UC,Enforcement Team Leader,Payments to Bodies in Respect of Income Collected,17/01/13,IJ00017868,34009.67,INNES ENGLAND COMMERCIAL PROPERTY, 
East Lindsey District Council,http://statistics.data.gov.uk/id/local-authority/32UC,TL IT - System Support,Computer Software Licence Costs,17/01/13,IJ00017839,5235.00,WEBASPX LIMITED, 
East Lindsey District Council,http://statistics.data.gov.uk/id/local-authority/32UC,Capital WIP,Grants and Contributions to Outside Bodies- No Service Recei,17/01/13,IJ00017855,7471.19,DENNISS & MARWOOD, 
East Lindsey District Council,http://statistics.data.gov.uk/id/local-authority/32UC,Hsg Private Sector TL,Other Income,17/01/13,IJ00017855,-667.07,DENNISS & MARWOOD, 
East Lindsey District Council,http://statistics.data.gov.uk/id/local-authority/32UC,Capital WIP,Grants and Contributions to Outside Bodies- No Service Recei,17/01/13,IJ00017860,5048.85,RODDEN & COOPER, 
East Lindsey District Council,http://statistics.data.gov.uk/id/local-authority/32UC,Hsg Private Sector TL,Other Income,17/01/13,IJ00017860,-450.79,RODDEN & COOPER, 
East Lindsey District Council,http://statistics.data.gov.uk/id/local-authority/32UC,Meridian Facility Manager,Buildings Maintenance - Programmed,17/01/13,IJ00017954,1366.81,SLEAFORD BUILDING SERVICES LTD, 
East Lindsey District Council,http://statistics.data.gov.uk/id/local-authority/32UC,Policy & Project Manager,Grants and Contributions to Outside Bodies- No Service Recei,17/01/13,IJ00017995,825.00,ASSOCIATION OF TOWN CENTRE MANAGMENT, 
East Lindsey District Council,http://statistics.data.gov.uk/id/local-authority/32UC,Embassy Pool Manager,Buildings Maintenance - Programmed,17/01/13,IJ00017949,3864.00,H20 SERVICING LTD, 
East Lindsey District Council,http://statistics.data.gov.uk/id/local-authority/32UC,Area Working,Agency Staff,17/01/13,IJ00017978,602.03,THE WORKSHOP (WISBECH) LIMITED, 
East Lindsey District Council,http://statistics.data.gov.uk/id/local-authority/32UC,Area Working,Agency Staff,17/01/13,IJ00017978,602.02,THE WORKSHOP (WISBECH) LIMITED, 
East Lindsey District Council,http://statistics.data.gov.uk/id/local-authority/32UC,Area Working,Agency Staff,17/01/13,IJ00017975,611.52,THE WORKSHOP (WISBECH) LIMITED, 
East Lindsey District Council,http://statistics.data.gov.uk/id/local-authority/32UC,Area Working,Agency Staff,17/01/13,IJ00017975,611.51,THE WORKSHOP (WISBECH) LIMITED, 
East Lindsey District Council,http://statistics.data.gov.uk/id/local-authority/32UC,Meridian Facility Manager,Other Miscellaneous Expenses,17/01/13,IJ00017775,638.31,AQUA VITA CAFE, 
East Lindsey District Council,http://statistics.data.gov.uk/id/local-authority/32UC,Meridian Facility Manager,Professional & Contractors Fees,17/01/13,IJ00017791,725.00,DONNA MAHER, 
East Lindsey District Council,http://statistics.data.gov.uk/id/local-authority/32UC,Corporate Accounting,Professional & Contractors Fees,17/01/13,IJ00017886,1120.73,J TOMLINSON LTD, 
East Lindsey District Council,http://statistics.data.gov.uk/id/local-authority/32UC,Capital WIP,Grants and Contributions to Outside Bodies- No Service Recei,17/01/13,IJ00017863,3754.44,THM CONSTRUCTION, 
East Lindsey District Council,http://statistics.data.gov.uk/id/local-authority/32UC,Hsg Private Sector TL,Buildings Maintenance - Programmed,17/01/13,IJ00017862,9250.00,SAFE & SOUND SECURITY SYSTEMS LINKS LTD, 
East Lindsey District Council,http://statistics.data.gov.uk/id/local-authority/32UC,Hsg Private Sector TL,Buildings Maintenance - Responsive,17/01/13,IJ00017864,650.00,SAFE & SOUND SECURITY SYSTEMS LINKS LTD, 
East Lindsey District Council,http://statistics.data.gov.uk/id/local-authority/32UC,Hsg Private Sector TL,Buildings Maintenance - Responsive,17/01/13,IJ00017865,800.00,SAFE & SOUND SECURITY SYSTEMS LINKS LTD, 
East Lindsey District Council,http://statistics.data.gov.uk/id/local-authority/32UC,Public Conveniences,Water and Sewerage Charges,17/01/13,IJ00017897,623.10,ANGLIAN WATER, 
East Lindsey District Council,http://statistics.data.gov.uk/id/local-authority/32UC,Meridian Facility Manager,Furniture and Equipment,17/01/13,IJ00017996,66.50,GRS SIGN CO LTD, 
East Lindsey District Council,http://statistics.data.gov.uk/id/local-authority/32UC,Policy & Project Manager,Professional & Contractors Fees,17/01/13,IJ00017996,11.50,GRS SIGN CO LTD, 
East Lindsey District Council,http://statistics.data.gov.uk/id/local-authority/32UC,Capital WIP,Works to Buildings (main Contractor),17/01/13,IJ00017996,37.00,GRS SIGN CO LTD, 
East Lindsey District Council,http://statistics.data.gov.uk/id/local-authority/32UC,Theatre Manager,Furniture and Equipment,17/01/13,IJ00017996,816.00,GRS SIGN CO LTD, 
East Lindsey District Council,http://statistics.data.gov.uk/id/local-authority/32UC,Public Conveniences,Other Miscellaneous Expenses,17/01/13,IJ00017996,572.00,GRS SIGN CO LTD, 
East Lindsey District Council,http://statistics.data.gov.uk/id/local-authority/32UC,Meridian Facility Manager,External Printing and Design Costs,17/01/13,IJ00017996,27.26,GRS SIGN CO LTD, 
East Lindsey District Council,http://statistics.data.gov.uk/id/local-authority/32UC,TL Property,Cleaning Contract,17/01/13,IJ00017943,563.00,OLSEN CONTRACT CLEANERS, 
East Lindsey District Council,http://statistics.data.gov.uk/id/local-authority/32UC,TL Property,Buildings Maintenance - Responsive,17/01/13,IJ00017948,975.00,QUALSURV ENVIRONMENTAL SOLUTIONS LTD, 
East Lindsey District Council,http://statistics.data.gov.uk/id/local-authority/32UC,Policy & Project Manager,Cleaning Contract,17/01/13,IJ00017768,1009.00,EASY CLEAN MARSHCHAPEL LTD, 
East Lindsey District Council,http://statistics.data.gov.uk/id/local-authority/32UC,Policy & Project Manager,Cleaning Contract,17/01/13,IJ00017770,751.10,EASY CLEAN MARSHCHAPEL LTD, 
East Lindsey District Council,http://statistics.data.gov.uk/id/local-authority/32UC,Policy & Project Manager,Cleaning Contract,17/01/13,IJ00017771,501.50,EASY CLEAN MARSHCHAPEL LTD, 
East Lindsey District Council,http://statistics.data.gov.uk/id/local-authority/32UC,Capital WIP,Grants and Contributions to Outside Bodies- No Service Recei,17/01/13,IJ00017866,1655.52,CARILLION ENERGY SERVICES LIMITED, 
East Lindsey District Council,http://statistics.data.gov.uk/id/local-authority/32UC,Corporate Accounting,Professional & Contractors Fees,17/01/13,IJ00017831,720.50,KINGS ARMOURED SECURITY SERVICES LTD, 
East Lindsey District Council,http://statistics.data.gov.uk/id/local-authority/32UC,Sports Centre Manager,Telephones,17/01/13,IJ00017792,42.39,DAISY COMMUNICATIONS LTD, 
East Lindsey District Council,http://statistics.data.gov.uk/id/local-authority/32UC,Service Development Manager,Telephones,17/01/13,IJ00017792,10.99,DAISY COMMUNICATIONS LTD, 
East Lindsey District Council,http://statistics.data.gov.uk/id/local-authority/32UC,Enforcement Team Leader,Other agencies,17/01/13,IJ00017792,22.34,DAISY COMMUNICATIONS LTD, 
East Lindsey District Council,http://statistics.data.gov.uk/id/local-authority/32UC,Customer Services Manager,Telephones,17/01/13,IJ00017792,43.43,DAISY COMMUNICATIONS LTD, 
East Lindsey District Council,http://statistics.data.gov.uk/id/local-authority/32UC,Policy & Project Manager,Telephones,17/01/13,IJ00017792,328.07,DAISY COMMUNICATIONS LTD, 
East Lindsey District Council,http://statistics.data.gov.uk/id/local-authority/32UC,Housing Support TL,Telephones,17/01/13,IJ00017792,11.05,DAISY COMMUNICATIONS LTD, 
East Lindsey District Council,http://statistics.data.gov.uk/id/local-authority/32UC,Meridian Facility Manager,Telephones,17/01/13,IJ00017792,168.70,DAISY COMMUNICATIONS LTD, 
East Lindsey District Council,http://statistics.data.gov.uk/id/local-authority/32UC,Embassy Pool Manager,Telephones,17/01/13,IJ00017792,41.30,DAISY COMMUNICATIONS LTD, 
East Lindsey District Council,http://statistics.data.gov.uk/id/local-authority/32UC,Meridian Facility Manager,Telephones,17/01/13,IJ00017792,67.13,DAISY COMMUNICATIONS LTD, 
East Lindsey District Council,http://statistics.data.gov.uk/id/local-authority/32UC,Policy & Project Manager,Telephones,17/01/13,IJ00017792,511.93,DAISY COMMUNICATIONS LTD, 
East Lindsey District Council,http://statistics.data.gov.uk/id/local-authority/32UC,BM Sports Facilities,Telephones,17/01/13,IJ00017792,10.99,DAISY COMMUNICATIONS LTD, 
East Lindsey District Council,http://statistics.data.gov.uk/id/local-authority/32UC,Theatre Manager,Telephones,17/01/13,IJ00017792,58.06,DAISY COMMUNICATIONS LTD, 
East Lindsey District Council,http://statistics.data.gov.uk/id/local-authority/32UC,Business Development Manager,Telephones,17/01/13,IJ00017792,43.93,DAISY COMMUNICATIONS LTD, 
East Lindsey District Council,http://statistics.data.gov.uk/id/local-authority/32UC,Building Control Partnership,Telephones,17/01/13,IJ00017792,80.40,DAISY COMMUNICATIONS LTD, 
East Lindsey District Council,http://statistics.data.gov.uk/id/local-authority/32UC,TL IT - Network & Comms,Telephones,17/01/13,IJ00017792,100.67,DAISY COMMUNICATIONS LTD, 
East Lindsey District Council,http://statistics.data.gov.uk/id/local-authority/32UC,Policy & Project Manager,Telephones,17/01/13,IJ00017792,413.18,DAISY COMMUNICATIONS LTD, 
East Lindsey District Council,http://statistics.data.gov.uk/id/local-authority/32UC,Sports Centre Manager,Telephones,17/01/13,IJ00017792,23.75,DAISY COMMUNICATIONS LTD, 
East Lindsey District Council,http://statistics.data.gov.uk/id/local-authority/32UC,TL Property,Telephones,17/01/13,IJ00017792,10.99,DAISY COMMUNICATIONS LTD, 
East Lindsey District Council,http://statistics.data.gov.uk/id/local-authority/32UC,Hsg Private Sector TL,Telephones,17/01/13,IJ00017792,11.16,DAISY COMMUNICATIONS LTD, 
East Lindsey District Council,http://statistics.data.gov.uk/id/local-authority/32UC,Technical Services Team Leader,Telephones,17/01/13,IJ00017792,11.37,DAISY COMMUNICATIONS LTD, 
East Lindsey District Council,http://statistics.data.gov.uk/id/local-authority/32UC,Commercial Team Leader,Telephones,17/01/13,IJ00017792,11.01,DAISY COMMUNICATIONS LTD, 
East Lindsey District Council,http://statistics.data.gov.uk/id/local-authority/32UC,TL Property,Telephones,17/01/13,IJ00017792,21.98,DAISY COMMUNICATIONS LTD, 
East Lindsey District Council,http://statistics.data.gov.uk/id/local-authority/32UC,TL Property,Telephones,17/01/13,IJ00017792,33.57,DAISY COMMUNICATIONS LTD, 
East Lindsey District Council,http://statistics.data.gov.uk/id/local-authority/32UC,TL Property,Telephones,17/01/13,IJ00017792,10.99,DAISY COMMUNICATIONS LTD, 
East Lindsey District Council,http://statistics.data.gov.uk/id/local-authority/32UC,TL Property,Telephones,17/01/13,IJ00017792,11.06,DAISY COMMUNICATIONS LTD, 
East Lindsey District Council,http://statistics.data.gov.uk/id/local-authority/32UC,TL Property,Telephones,17/01/13,IJ00017792,22.32,DAISY COMMUNICATIONS LTD, 
East Lindsey District Council,http://statistics.data.gov.uk/id/local-authority/32UC,TL Property,Telephones,17/01/13,IJ00017792,51.00,DAISY COMMUNICATIONS LTD, 
East Lindsey District Council,http://statistics.data.gov.uk/id/local-authority/32UC,Theatre Manager,Telephones,17/01/13,IJ00017792,54.95,DAISY COMMUNICATIONS LTD, 
East Lindsey District Council,http://statistics.data.gov.uk/id/local-authority/32UC,SM Economic Regen & Property,Telephones,17/01/13,IJ00017792,11.00,DAISY COMMUNICATIONS LTD, 
East Lindsey District Council,http://statistics.data.gov.uk/id/local-authority/32UC,Horncastle Pool Manager,Telephones,17/01/13,IJ00017792,55.18,DAISY COMMUNICATIONS LTD, 
East Lindsey District Council,http://statistics.data.gov.uk/id/local-authority/32UC,Embassy Pool Manager,Telephones,17/01/13,IJ00017792,10.99,DAISY COMMUNICATIONS LTD, 
East Lindsey District Council,http://statistics.data.gov.uk/id/local-authority/32UC,Embassy Pool Manager,Telephones,17/01/13,IJ00017792,10.99,DAISY COMMUNICATIONS LTD, 
East Lindsey District Council,http://statistics.data.gov.uk/id/local-authority/32UC,Theatre Manager,Telephones,17/01/13,IJ00017792,10.99,DAISY COMMUNICATIONS LTD, 
East Lindsey District Council,http://statistics.data.gov.uk/id/local-authority/32UC,Service Development Manager,Telephones,17/01/13,IJ00017792,16.29,DAISY COMMUNICATIONS LTD, 
East Lindsey District Council,http://statistics.data.gov.uk/id/local-authority/32UC,Technical Services Team Leader,Telephones,17/01/13,IJ00017792,10.99,DAISY COMMUNICATIONS LTD, 
East Lindsey District Council,http://statistics.data.gov.uk/id/local-authority/32UC,Corporate Accounting,Telephones,17/01/13,IJ00017792,11.00,DAISY COMMUNICATIONS LTD, 
East Lindsey District Council,http://statistics.data.gov.uk/id/local-authority/32UC,Technical Services Team Leader,Other Communication Costs,17/01/13,IJ00017792,10.99,DAISY COMMUNICATIONS LTD, 
East Lindsey District Council,http://statistics.data.gov.uk/id/local-authority/32UC,Improvement & Development Mngr,Telephones,17/01/13,IJ00017792,22.53,DAISY COMMUNICATIONS LTD, 
East Lindsey District Council,http://statistics.data.gov.uk/id/local-authority/32UC,Corporate Accounting,Telephones,17/01/13,IJ00017792,10.99,DAISY COMMUNICATIONS LTD, 
East Lindsey District Council,http://statistics.data.gov.uk/id/local-authority/32UC,TL IT - Network & Comms,Telephones,17/01/13,IJ00017792,21.98,DAISY COMMUNICATIONS LTD, 
East Lindsey District Council,http://statistics.data.gov.uk/id/local-authority/32UC,Waste Services Manager,Telephones,17/01/13,IJ00017792,11.23,DAISY COMMUNICATIONS LTD, 
East Lindsey District Council,http://statistics.data.gov.uk/id/local-authority/32UC,Waste Services Manager,Maintenance,17/01/13,IJ00017755,647.85,MAY GURNEY FLEET & PASSENGER SERVICES LTD, 
East Lindsey District Council,http://statistics.data.gov.uk/id/local-authority/32UC,Waste Services Manager,Maintenance,17/01/13,IJ00017756,1371.03,MAY GURNEY FLEET & PASSENGER SERVICES LTD, 
East Lindsey District Council,http://statistics.data.gov.uk/id/local-authority/32UC,Waste Services Manager,Maintenance,17/01/13,IJ00017798,979.80,MAY GURNEY FLEET & PASSENGER SERVICES LTD, 
East Lindsey District Council,http://statistics.data.gov.uk/id/local-authority/32UC,Enforcement Team Leader,Fuel & Oil,17/01/13,IJ00017802,366.64,THE RIGHT FUELCARD COMPANY LTD, 
East Lindsey District Council,http://statistics.data.gov.uk/id/local-authority/32UC,Hsg Advice & Homelessness TL,Fuel & Oil,17/01/13,IJ00017802,140.88,THE RIGHT FUELCARD COMPANY LTD, 
East Lindsey District Council,http://statistics.data.gov.uk/id/local-authority/32UC,Technical Services Team Leader,Fuel & Oil,17/01/13,IJ00017802,136.56,THE RIGHT FUELCARD COMPANY LTD, 
East Lindsey District Council,http://statistics.data.gov.uk/id/local-authority/32UC,Theatre Manager,Fuel & Oil,17/01/13,IJ00017802,111.85,THE RIGHT FUELCARD COMPANY LTD, 
East Lindsey District Council,http://statistics.data.gov.uk/id/local-authority/32UC,Area Working,Fuel & Oil,17/01/13,IJ00017802,2867.39,THE RIGHT FUELCARD COMPANY LTD, 
East Lindsey District Council,http://statistics.data.gov.uk/id/local-authority/32UC,Area Working,Fuel & Oil,17/01/13,IJ00017802,4314.15,THE RIGHT FUELCARD COMPANY LTD, 
East Lindsey District Council,http://statistics.data.gov.uk/id/local-authority/32UC,Meridian Facility Manager,Furniture and Equipment,17/01/13,IJ00017990,3314.00,Mark Harrod, 
East Lindsey District Council,http://statistics.data.gov.uk/id/local-authority/32UC,Policy & Project Manager,Grants and Contributions to Outside Bodies- No Service Recei,17/01/13,IJ00017958,650.00,Media Bee LImited, 
East Lindsey District Council,http://statistics.data.gov.uk/id/local-authority/32UC,Policy & Project Manager,Grants and Contributions to Outside Bodies- No Service Recei,17/01/13,IJ00017959,760.00,Media Bee LImited, 
East Lindsey District Council,http://statistics.data.gov.uk/id/local-authority/32UC,TL Partnerships & Grants,Grants and Contributions to Outside Bodies- No Service Recei,17/01/13,IJ00017835,675.00,Holton Le Clay Camera Club, 
East Lindsey District Council,http://statistics.data.gov.uk/id/local-authority/32UC,TL IT - Network & Comms,Telephones,17/01/13,IJ00017848,8210.00,Wifigear Limited, 
East Lindsey District Council,http://statistics.data.gov.uk/id/local-authority/32UC,Policy & Project Manager,Professional & Contractors Fees,24/01/13,IJ00018218,53.05,BIFFA WASTE SERVICES LTD, 
East Lindsey District Council,http://statistics.data.gov.uk/id/local-authority/32UC,Horncastle Pool Manager,Professional & Contractors Fees,24/01/13,IJ00018218,106.10,BIFFA WASTE SERVICES LTD, 
East Lindsey District Council,http://statistics.data.gov.uk/id/local-authority/32UC,TL Property,Professional & Contractors Fees,24/01/13,IJ00018218,106.10,BIFFA WASTE SERVICES LTD, 
East Lindsey District Council,http://statistics.data.gov.uk/id/local-authority/32UC,TL Property,Professional & Contractors Fees,24/01/13,IJ00018218,53.05,BIFFA WASTE SERVICES LTD, 
East Lindsey District Council,http://statistics.data.gov.uk/id/local-authority/32UC,TL Property,Professional & Contractors Fees,24/01/13,IJ00018218,255.25,BIFFA WASTE SERVICES LTD, 
East Lindsey District Council,http://statistics.data.gov.uk/id/local-authority/32UC,TL Property,Professional & Contractors Fees,24/01/13,IJ00018218,53.05,BIFFA WASTE SERVICES LTD, 
East Lindsey District Council,http://statistics.data.gov.uk/id/local-authority/32UC,Policy & Project Manager,Professional & Contractors Fees,24/01/13,IJ00018218,53.05,BIFFA WASTE SERVICES LTD, 
East Lindsey District Council,http://statistics.data.gov.uk/id/local-authority/32UC,Policy & Project Manager,Professional & Contractors Fees,24/01/13,IJ00018218,53.05,BIFFA WASTE SERVICES LTD, 
East Lindsey District Council,http://statistics.data.gov.uk/id/local-authority/32UC,Embassy Pool Manager,Professional & Contractors Fees,24/01/13,IJ00018218,265.25,BIFFA WASTE SERVICES LTD, 
East Lindsey District Council,http://statistics.data.gov.uk/id/local-authority/32UC,Theatre Manager,Professional & Contractors Fees,24/01/13,IJ00018218,106.10,BIFFA WASTE SERVICES LTD, 
East Lindsey District Council,http://statistics.data.gov.uk/id/local-authority/32UC,Theatre Manager,Professional & Contractors Fees,24/01/13,IJ00018218,36.25,BIFFA WASTE SERVICES LTD, 
East Lindsey District Council,http://statistics.data.gov.uk/id/local-authority/32UC,Sports Centre Manager,Professional & Contractors Fees,24/01/13,IJ00018218,53.05,BIFFA WASTE SERVICES LTD, 
East Lindsey District Council,http://statistics.data.gov.uk/id/local-authority/32UC,Meridian Facility Manager,Professional & Contractors Fees,24/01/13,IJ00018218,53.05,BIFFA WASTE SERVICES LTD, 
East Lindsey District Council,http://statistics.data.gov.uk/id/local-authority/32UC,Theatre Manager,Performers and Entertainers Fees,24/01/13,IJ00018154,10153.35,JANICE SUTTON, 
East Lindsey District Council,http://statistics.data.gov.uk/id/local-authority/32UC,Policy & Project Manager,Other Miscellaneous Expenses,24/01/13,IJ00018083,958.69,HERITAGE TRUST OF LINCOLNSHIRE LTD, 
East Lindsey District Council,http://statistics.data.gov.uk/id/local-authority/32UC,Corporate Accounting,Professional & Contractors Fees,24/01/13,IJ00018033,1357.14,BOSTON BOROUGH COUNCIL, 
East Lindsey District Council,http://statistics.data.gov.uk/id/local-authority/32UC,TL Property,Buildings Maintenance - Programmed,24/01/13,IJ00018138,1199.94,KENMOR BUILDING & CONSTRUCTION SERVICES, 
East Lindsey District Council,http://statistics.data.gov.uk/id/local-authority/32UC,Enforcement Team Leader,Stationery,24/01/13,IJ00018059,900.00,PAPERWORK UK LTD, 
East Lindsey District Council,http://statistics.data.gov.uk/id/local-authority/32UC,Enforcement Team Leader,Stationery,24/01/13,IJ00018204,1653.12,PAPERWORK UK LTD, 
East Lindsey District Council,http://statistics.data.gov.uk/id/local-authority/32UC,Health Team Leader,Materials and Consumables,24/01/13,IJ00018064,711.95,CIEH, 
East Lindsey District Council,http://statistics.data.gov.uk/id/local-authority/32UC,BALANCE  SHEET,Payroll-Unison,24/01/13,IJ00018184,1653.65,UNISON, 
East Lindsey District Council,http://statistics.data.gov.uk/id/local-authority/32UC,Policy & Project Manager,Electricity,24/01/13,IJ00018147,548.92,SOUTHERN ELECTRIC PLC, 
East Lindsey District Council,http://statistics.data.gov.uk/id/local-authority/32UC,Technical Services Team Leader,Electricity,24/01/13,IJ00018147,203.93,SOUTHERN ELECTRIC PLC, 
East Lindsey District Council,http://statistics.data.gov.uk/id/local-authority/32UC,Business Development Manager,Electricity,24/01/13,IJ00018147,1907.57,SOUTHERN ELECTRIC PLC, 
East Lindsey District Council,http://statistics.data.gov.uk/id/local-authority/32UC,Service Development Manager,Electricity,24/01/13,IJ00018147,360.74,SOUTHERN ELECTRIC PLC, 
East Lindsey District Council,http://statistics.data.gov.uk/id/local-authority/32UC,Service Development Manager,Electricity,24/01/13,IJ00018147,126.74,SOUTHERN ELECTRIC PLC, 
East Lindsey District Council,http://statistics.data.gov.uk/id/local-authority/32UC,Service Development Manager,Electricity,24/01/13,IJ00018147,957.46,SOUTHERN ELECTRIC PLC, 
East Lindsey District Council,http://statistics.data.gov.uk/id/local-authority/32UC,Service Development Manager,Electricity,24/01/13,IJ00018147,927.13,SOUTHERN ELECTRIC PLC, 
East Lindsey District Council,http://statistics.data.gov.uk/id/local-authority/32UC,Business Development Manager,Electricity,24/01/13,IJ00018147,409.37,SOUTHERN ELECTRIC PLC, 
East Lindsey District Council,http://statistics.data.gov.uk/id/local-authority/32UC,Public Conveniences,Electricity,24/01/13,IJ00018147,246.53,SOUTHERN ELECTRIC PLC, 
East Lindsey District Council,http://statistics.data.gov.uk/id/local-authority/32UC,Public Conveniences,Electricity,24/01/13,IJ00018147,116.16,SOUTHERN ELECTRIC PLC, 
East Lindsey District Council,http://statistics.data.gov.uk/id/local-authority/32UC,TL Property,Electricity,24/01/13,IJ00018148,209.51,SOUTHERN ELECTRIC PLC, 
East Lindsey District Council,http://statistics.data.gov.uk/id/local-authority/32UC,TL Property,Electricity,24/01/13,IJ00018148,247.44,SOUTHERN ELECTRIC PLC, 
East Lindsey District Council,http://statistics.data.gov.uk/id/local-authority/32UC,Policy & Project Manager,Electricity,24/01/13,IJ00018148,1126.04,SOUTHERN ELECTRIC PLC, 
East Lindsey District Council,http://statistics.data.gov.uk/id/local-authority/32UC,Meridian Facility Manager,Electricity,24/01/13,IJ00018148,4625.66,SOUTHERN ELECTRIC PLC, 
East Lindsey District Council,http://statistics.data.gov.uk/id/local-authority/32UC,Service Development Manager,Electricity,24/01/13,IJ00018148,1230.00,SOUTHERN ELECTRIC PLC, 
East Lindsey District Council,http://statistics.data.gov.uk/id/local-authority/32UC,TL Property,Electricity,24/01/13,IJ00018148,21.97,SOUTHERN ELECTRIC PLC, 
East Lindsey District Council,http://statistics.data.gov.uk/id/local-authority/32UC,SM Economic Regen & Property,Electricity,24/01/13,IJ00018148,41.58,SOUTHERN ELECTRIC PLC, 
East Lindsey District Council,http://statistics.data.gov.uk/id/local-authority/32UC,Public Conveniences,Electricity,24/01/13,IJ00018148,230.88,SOUTHERN ELECTRIC PLC, 
East Lindsey District Council,http://statistics.data.gov.uk/id/local-authority/32UC,Public Conveniences,Electricity,24/01/13,IJ00018148,141.66,SOUTHERN ELECTRIC PLC, 
East Lindsey District Council,http://statistics.data.gov.uk/id/local-authority/32UC,Public Conveniences,Electricity,24/01/13,IJ00018148,271.22,SOUTHERN ELECTRIC PLC, 
East Lindsey District Council,http://statistics.data.gov.uk/id/local-authority/32UC,TL Property,Electricity,24/01/13,IJ00018149,3948.88,SOUTHERN ELECTRIC PLC, 
East Lindsey District Council,http://statistics.data.gov.uk/id/local-authority/32UC,TL Property,Electricity,24/01/13,IJ00018149,407.42,SOUTHERN ELECTRIC PLC, 
East Lindsey District Council,http://statistics.data.gov.uk/id/local-authority/32UC,Theatre Manager,Electricity,24/01/13,IJ00018149,1971.66,SOUTHERN ELECTRIC PLC, 
East Lindsey District Council,http://statistics.data.gov.uk/id/local-authority/32UC,Meridian Facility Manager,Electricity,24/01/13,IJ00018149,601.58,SOUTHERN ELECTRIC PLC, 
East Lindsey District Council,http://statistics.data.gov.uk/id/local-authority/32UC,Service Development Manager,Electricity,24/01/13,IJ00018149,46.85,SOUTHERN ELECTRIC PLC, 
East Lindsey District Council,http://statistics.data.gov.uk/id/local-authority/32UC,Service Development Manager,Electricity,24/01/13,IJ00018149,211.19,SOUTHERN ELECTRIC PLC, 
East Lindsey District Council,http://statistics.data.gov.uk/id/local-authority/32UC,Theatre Manager,Electricity,24/01/13,IJ00018149,52.80,SOUTHERN ELECTRIC PLC, 
East Lindsey District Council,http://statistics.data.gov.uk/id/local-authority/32UC,Public Conveniences,Electricity,24/01/13,IJ00018149,244.88,SOUTHERN ELECTRIC PLC, 
East Lindsey District Council,http://statistics.data.gov.uk/id/local-authority/32UC,Public Conveniences,Electricity,24/01/13,IJ00018149,264.34,SOUTHERN ELECTRIC PLC, 
East Lindsey District Council,http://statistics.data.gov.uk/id/local-authority/32UC,TL Property,Electricity,24/01/13,IJ00018149,478.53,SOUTHERN ELECTRIC PLC, 
East Lindsey District Council,http://statistics.data.gov.uk/id/local-authority/32UC,TL Property,Electricity,24/01/13,IJ00018150,-3.52,SOUTHERN ELECTRIC PLC, 
East Lindsey District Council,http://statistics.data.gov.uk/id/local-authority/32UC,Policy & Project Manager,Electricity,24/01/13,IJ00018150,831.69,SOUTHERN ELECTRIC PLC, 
East Lindsey District Council,http://statistics.data.gov.uk/id/local-authority/32UC,Technical Services Team Leader,Electricity,24/01/13,IJ00018150,199.47,SOUTHERN ELECTRIC PLC, 
East Lindsey District Council,http://statistics.data.gov.uk/id/local-authority/32UC,Sports Centre Manager,Electricity,24/01/13,IJ00018150,1074.50,SOUTHERN ELECTRIC PLC, 
East Lindsey District Council,http://statistics.data.gov.uk/id/local-authority/32UC,Enforcement Team Leader,Electricity,24/01/13,IJ00018150,27.88,SOUTHERN ELECTRIC PLC, 
East Lindsey District Council,http://statistics.data.gov.uk/id/local-authority/32UC,Service Development Manager,Electricity,24/01/13,IJ00018150,797.90,SOUTHERN ELECTRIC PLC, 
East Lindsey District Council,http://statistics.data.gov.uk/id/local-authority/32UC,Public Conveniences,Electricity,24/01/13,IJ00018150,78.14,SOUTHERN ELECTRIC PLC, 
East Lindsey District Council,http://statistics.data.gov.uk/id/local-authority/32UC,Council Tax TL,VAT Customs and Excise,24/01/13,IJ00018037,509.38,JACOBS, 
East Lindsey District Council,http://statistics.data.gov.uk/id/local-authority/32UC,Council Tax TL,VAT Customs and Excise,24/01/13,IJ00018125,995.22,JACOBS, 
East Lindsey District Council,http://statistics.data.gov.uk/id/local-authority/32UC,Council Tax TL,VAT Customs and Excise,24/01/13,IJ00018131,523.71,JACOBS, 
East Lindsey District Council,http://statistics.data.gov.uk/id/local-authority/32UC,Corporate Accounting,Gain or Loss on Sale of Non Current Assets,24/01/13,IJ00018156,59060.05,BLUEPRINT LIMITED, 
East Lindsey District Council,http://statistics.data.gov.uk/id/local-authority/32UC,Business Development Manager,Gas,24/01/13,IJ00017977,73.69,ESPO, 
East Lindsey District Council,http://statistics.data.gov.uk/id/local-authority/32UC,TL Property,Gas,24/01/13,IJ00017977,1622.49,ESPO, 
East Lindsey District Council,http://statistics.data.gov.uk/id/local-authority/32UC,TL Property,Gas,24/01/13,IJ00017977,505.59,ESPO, 
East Lindsey District Council,http://statistics.data.gov.uk/id/local-authority/32UC,TL Property,Gas,24/01/13,IJ00017977,2435.07,ESPO, 
East Lindsey District Council,http://statistics.data.gov.uk/id/local-authority/32UC,TL Property,Gas,24/01/13,IJ00017977,176.01,ESPO, 
East Lindsey District Council,http://statistics.data.gov.uk/id/local-authority/32UC,TL Property,Gas,24/01/13,IJ00017977,397.34,ESPO, 
East Lindsey District Council,http://statistics.data.gov.uk/id/local-authority/32UC,TL Property,Gas,24/01/13,IJ00017977,273.20,ESPO, 
East Lindsey District Council,http://statistics.data.gov.uk/id/local-authority/32UC,Policy & Project Manager,Gas,24/01/13,IJ00017977,387.44,ESPO, 
East Lindsey District Council,http://statistics.data.gov.uk/id/local-authority/32UC,TL Property,Gas,24/01/13,IJ00017977,245.32,ESPO, 
East Lindsey District Council,http://statistics.data.gov.uk/id/local-authority/32UC,Policy & Project Manager,Gas,24/01/13,IJ00017977,48.52,ESPO, 
East Lindsey District Council,http://statistics.data.gov.uk/id/local-authority/32UC,Sports Centre Manager,Gas,24/01/13,IJ00017977,124.83,ESPO, 
East Lindsey District Council,http://statistics.data.gov.uk/id/local-authority/32UC,Horncastle Pool Manager,Gas,24/01/13,IJ00017977,2313.37,ESPO, 
East Lindsey District Council,http://statistics.data.gov.uk/id/local-authority/32UC,Embassy Pool Manager,Gas,24/01/13,IJ00017977,3365.92,ESPO, 
East Lindsey District Council,http://statistics.data.gov.uk/id/local-authority/32UC,Theatre Manager,Gas,24/01/13,IJ00017977,4691.00,ESPO, 
East Lindsey District Council,http://statistics.data.gov.uk/id/local-authority/32UC,Sports Centre Manager,Gas,24/01/13,IJ00017977,374.91,ESPO, 
East Lindsey District Council,http://statistics.data.gov.uk/id/local-authority/32UC,Meridian Facility Manager,Gas,24/01/13,IJ00017977,281.05,ESPO, 
East Lindsey District Council,http://statistics.data.gov.uk/id/local-authority/32UC,Meridian Facility Manager,Gas,24/01/13,IJ00017977,234.81,ESPO, 
East Lindsey District Council,http://statistics.data.gov.uk/id/local-authority/32UC,TL Property,Gas,24/01/13,IJ00017977,12.97,ESPO, 
East Lindsey District Council,http://statistics.data.gov.uk/id/local-authority/32UC,Policy & Project Manager,Gas,24/01/13,IJ00017977,417.12,ESPO, 
East Lindsey District Council,http://statistics.data.gov.uk/id/local-authority/32UC,SM Economic Regen & Property,Gas,24/01/13,IJ00017977,30.00,ESPO, 
East Lindsey District Council,http://statistics.data.gov.uk/id/local-authority/32UC,Public Conveniences,Gas,24/01/13,IJ00017977,40.33,ESPO, 
East Lindsey District Council,http://statistics.data.gov.uk/id/local-authority/32UC,Sports Centre Manager,Cleaning Contract,24/01/13,IJ00018016,149.56,ESPO, 
East Lindsey District Council,http://statistics.data.gov.uk/id/local-authority/32UC,Development Control,Stationery,24/01/13,IJ00018016,36.63,ESPO, 
East Lindsey District Council,http://statistics.data.gov.uk/id/local-authority/32UC,Meridian Facility Manager,Stationery,24/01/13,IJ00018016,337.00,ESPO, 
East Lindsey District Council,http://statistics.data.gov.uk/id/local-authority/32UC,Sports Centre Manager,Stationery,24/01/13,IJ00018016,47.75,ESPO, 
East Lindsey District Council,http://statistics.data.gov.uk/id/local-authority/32UC,TL Property,Stationery,24/01/13,IJ00018016,22.61,ESPO, 
East Lindsey District Council,http://statistics.data.gov.uk/id/local-authority/32UC,Sports Centre Manager,Furniture and Equipment,24/01/13,IJ00018016,73.85,ESPO, 
East Lindsey District Council,http://statistics.data.gov.uk/id/local-authority/32UC,Sports Centre Manager,Furniture and Equipment,24/01/13,IJ00018016,7.70,ESPO, 
East Lindsey District Council,http://statistics.data.gov.uk/id/local-authority/32UC,Policy & Project Manager,Stationery,24/01/13,IJ00018016,6.43,ESPO, 
East Lindsey District Council,http://statistics.data.gov.uk/id/local-authority/32UC,Waste Services Manager,Stationery,24/01/13,IJ00018016,8.40,ESPO, 
East Lindsey District Council,http://statistics.data.gov.uk/id/local-authority/32UC,Policy & Project Manager,Stationery,24/01/13,IJ00018016,36.03,ESPO, 
East Lindsey District Council,http://statistics.data.gov.uk/id/local-authority/32UC,Area Working,Stationery,24/01/13,IJ00018016,9.75,ESPO, 
East Lindsey District Council,http://statistics.data.gov.uk/id/local-authority/32UC,Policy & Project Manager,Stationery,24/01/13,IJ00018016,1.85,ESPO, 
East Lindsey District Council,http://statistics.data.gov.uk/id/local-authority/32UC,Hsg Advice & Homelessness TL,Grants and Contributions to Outside Bodies- No Service Recei,24/01/13,IJ00018069,6748.23,NEW LINX HOUSING TRUST, 
East Lindsey District Council,http://statistics.data.gov.uk/id/local-authority/32UC,Housing Support TL,Rent and Lease Payments,24/01/13,IJ00018070,970.08,NEW LINX HOUSING TRUST, 
East Lindsey District Council,http://statistics.data.gov.uk/id/local-authority/32UC,Housing Support TL,Rent and Lease Payments,24/01/13,IJ00018071,882.84,NEW LINX HOUSING TRUST, 
East Lindsey District Council,http://statistics.data.gov.uk/id/local-authority/32UC,Housing Support TL,Rent and Lease Payments,24/01/13,IJ00018072,823.08,NEW LINX HOUSING TRUST, 
East Lindsey District Council,http://statistics.data.gov.uk/id/local-authority/32UC,Housing Support TL,Rent and Lease Payments,24/01/13,IJ00018073,966.84,NEW LINX HOUSING TRUST, 
East Lindsey District Council,http://statistics.data.gov.uk/id/local-authority/32UC,Collection Fund,Payment to NNDR Pool,24/01/13,IJ00018170,1489473.00,DEPARTMENT FOR COMMUNITIES AND LOCAL, 
East Lindsey District Council,http://statistics.data.gov.uk/id/local-authority/32UC,Corporate Accounting,Non Domestic Rates,24/01/13,IJ00018170,-585450.00,DEPARTMENT FOR COMMUNITIES AND LOCAL, 
East Lindsey District Council,http://statistics.data.gov.uk/id/local-authority/32UC,Cultural & Related Services,Grants and Contributions- Where a Service is Received,24/01/13,IJ00018062,500.00,JOHN BYFORD PHOTOGRAPHY, 
East Lindsey District Council,http://statistics.data.gov.uk/id/local-authority/32UC,Waste Services Manager,Agency Staff,24/01/13,IJ00018089,3577.91,CLOSE INVOICE FINANCE LTD, 
East Lindsey District Council,http://statistics.data.gov.uk/id/local-authority/32UC,TL Property,Buildings Maintenance - Programmed,24/01/13,IJ00018144,1000.00,THYSSENKRUPP ELEVATOR UK LTD, 
East Lindsey District Council,http://statistics.data.gov.uk/id/local-authority/32UC,TL IT - Infrastructure,External Printing and Design Costs,24/01/13,IJ00018002,1751.48,RICOH UK LTD, 
East Lindsey District Council,http://statistics.data.gov.uk/id/local-authority/32UC,TL IT - Infrastructure,External Printing and Design Costs,24/01/13,IJ00018007,2342.77,RICOH UK LTD, 
East Lindsey District Council,http://statistics.data.gov.uk/id/local-authority/32UC,TL IT - Infrastructure,External Printing and Design Costs,24/01/13,IJ00018009,4812.94,RICOH UK LTD, 
East Lindsey District Council,http://statistics.data.gov.uk/id/local-authority/32UC,TL IT - Infrastructure,Professional & Contractors Fees,24/01/13,IJ00018013,890.00,SOCITM LIMITED, 
East Lindsey District Council,http://statistics.data.gov.uk/id/local-authority/32UC,BALANCE  SHEET,Payroll-Gmbatu,24/01/13,IJ00018185,724.14,GMB NATIONAL ADMINISTRATION UNIT, 
East Lindsey District Council,http://statistics.data.gov.uk/id/local-authority/32UC,Enforcement Team Leader,Stationery,24/01/13,IJ00016460,1020.00,LIBERTY SERVICES LIMITED, 
East Lindsey District Council,http://statistics.data.gov.uk/id/local-authority/32UC,Enforcement Team Leader,Stationery,24/01/13,IJ00017386,1220.00,LIBERTY SERVICES LIMITED, 
East Lindsey District Council,http://statistics.data.gov.uk/id/local-authority/32UC,Enforcement Team Leader,Stationery,24/01/13,IJ00017971,768.00,LIBERTY SERVICES LIMITED, 
East Lindsey District Council,http://statistics.data.gov.uk/id/local-authority/32UC,Enforcement Team Leader,Stationery,24/01/13,IJ00018178,1220.00,LIBERTY SERVICES LIMITED, 
East Lindsey District Council,http://statistics.data.gov.uk/id/local-authority/32UC,Enforcement Team Leader,Stationery,24/01/13,IJ00018179,1020.00,LIBERTY SERVICES LIMITED, 
East Lindsey District Council,http://statistics.data.gov.uk/id/local-authority/32UC,Enforcement Team Leader,Stationery,24/01/13,IJ00018180,768.00,LIBERTY SERVICES LIMITED, 
East Lindsey District Council,http://statistics.data.gov.uk/id/local-authority/32UC,Horncastle Pool Manager,Buildings Maintenance - Programmed,24/01/13,IJ00018143,16152.68,H20 SERVICING LTD, 
East Lindsey District Council,http://statistics.data.gov.uk/id/local-authority/32UC,Area Working,Agency Staff,24/01/13,IJ00018157,608.40,THE WORKSHOP (WISBECH) LIMITED, 
East Lindsey District Council,http://statistics.data.gov.uk/id/local-authority/32UC,Area Working,Agency Staff,24/01/13,IJ00018157,608.40,THE WORKSHOP (WISBECH) LIMITED, 
East Lindsey District Council,http://statistics.data.gov.uk/id/local-authority/32UC,TL IT - Infrastructure,Computer Hardware Purchase,24/01/13,IJ00018214,4045.00,ADDAMS OFFICE SUPPLIES LTD, 
East Lindsey District Council,http://statistics.data.gov.uk/id/local-authority/32UC,Housing Support TL,Rent and Lease Payments,24/01/13,IJ00018075,937.50,TOTEMIC LTD, 
East Lindsey District Council,http://statistics.data.gov.uk/id/local-authority/32UC,Capital WIP,Grants and Contributions to Outside Bodies- No Service Recei,24/01/13,IJ00018078,5341.52,HARRIS BUILDING SERVICES, 
East Lindsey District Council,http://statistics.data.gov.uk/id/local-authority/32UC,Hsg Private Sector TL,Other Income,24/01/13,IJ00018078,-476.93,HARRIS BUILDING SERVICES, 
East Lindsey District Council,http://statistics.data.gov.uk/id/local-authority/32UC,TL IT - Network & Comms,Computer Hardware Maintenance,24/01/13,IJ00018012,500.00,LOGICAL TELECOM, 
East Lindsey District Council,http://statistics.data.gov.uk/id/local-authority/32UC,Waste Services Manager,Staff Training Expenses,24/01/13,IJ00018159,518.00,TRANSED TRAINING LTD, 
East Lindsey District Council,http://statistics.data.gov.uk/id/local-authority/32UC,Waste Services Manager,Staff Training Expenses,24/01/13,IJ00018159,183.75,TRANSED TRAINING LTD, 
East Lindsey District Council,http://statistics.data.gov.uk/id/local-authority/32UC,Waste Services Manager,Staff Training Expenses,24/01/13,IJ00018160,568.00,TRANSED TRAINING LTD, 
East Lindsey District Council,http://statistics.data.gov.uk/id/local-authority/32UC,Waste Services Manager,Staff Training Expenses,24/01/13,IJ00018160,157.50,TRANSED TRAINING LTD, 
East Lindsey District Council,http://statistics.data.gov.uk/id/local-authority/32UC,Business Development Officer,Grants and Contributions to Outside Bodies- No Service Recei,24/01/13,IJ00018122,8218.30,SKEGNESS ACADEMY, 
East Lindsey District Council,http://statistics.data.gov.uk/id/local-authority/32UC,Public Conveniences,Water and Sewerage Charges,24/01/13,IJ00018096,758.78,ANGLIAN WATER, 
East Lindsey District Council,http://statistics.data.gov.uk/id/local-authority/32UC,Public Conveniences,Water and Sewerage Charges,24/01/13,IJ00018097,1079.11,ANGLIAN WATER, 
East Lindsey District Council,http://statistics.data.gov.uk/id/local-authority/32UC,Public Conveniences,Water and Sewerage Charges,24/01/13,IJ00018098,761.42,ANGLIAN WATER, 
East Lindsey District Council,http://statistics.data.gov.uk/id/local-authority/32UC,Public Conveniences,Water and Sewerage Charges,24/01/13,IJ00018100,671.07,ANGLIAN WATER, 
East Lindsey District Council,http://statistics.data.gov.uk/id/local-authority/32UC,Meridian Facility Manager,Water and Sewerage Charges,24/01/13,IJ00018105,728.66,ANGLIAN WATER, 
East Lindsey District Council,http://statistics.data.gov.uk/id/local-authority/32UC,Business Development Manager,Water and Sewerage Charges,24/01/13,IJ00018106,2434.96,ANGLIAN WATER, 
East Lindsey District Council,http://statistics.data.gov.uk/id/local-authority/32UC,Corporate Accounting,Government Housing Capital Receipt Pool,24/01/13,IJ00018206,645.71,GOVERNMENT BANKING SERVICE, 
East Lindsey District Council,http://statistics.data.gov.uk/id/local-authority/32UC,Sports Centre Manager,Telephones,24/01/13,IJ00018079,41.24,DAISY COMMUNICATIONS LTD, 
East Lindsey District Council,http://statistics.data.gov.uk/id/local-authority/32UC,Service Development Manager,Telephones,24/01/13,IJ00018079,10.99,DAISY COMMUNICATIONS LTD, 
East Lindsey District Council,http://statistics.data.gov.uk/id/local-authority/32UC,Enforcement Team Leader,Other agencies,24/01/13,IJ00018079,22.34,DAISY COMMUNICATIONS LTD, 
East Lindsey District Council,http://statistics.data.gov.uk/id/local-authority/32UC,Customer Services Manager,Telephones,24/01/13,IJ00018079,42.34,DAISY COMMUNICATIONS LTD, 
East Lindsey District Council,http://statistics.data.gov.uk/id/local-authority/32UC,Policy & Project Manager,Telephones,24/01/13,IJ00018079,300.68,DAISY COMMUNICATIONS LTD, 
East Lindsey District Council,http://statistics.data.gov.uk/id/local-authority/32UC,Housing Support TL,Telephones,24/01/13,IJ00018079,11.28,DAISY COMMUNICATIONS LTD, 
East Lindsey District Council,http://statistics.data.gov.uk/id/local-authority/32UC,Meridian Facility Manager,Telephones,24/01/13,IJ00018079,138.48,DAISY COMMUNICATIONS LTD, 
East Lindsey District Council,http://statistics.data.gov.uk/id/local-authority/32UC,Embassy Pool Manager,Telephones,24/01/13,IJ00018079,39.34,DAISY COMMUNICATIONS LTD, 
East Lindsey District Council,http://statistics.data.gov.uk/id/local-authority/32UC,Meridian Facility Manager,Telephones,24/01/13,IJ00018079,64.79,DAISY COMMUNICATIONS LTD, 
East Lindsey District Council,http://statistics.data.gov.uk/id/local-authority/32UC,Policy & Project Manager,Telephones,24/01/13,IJ00018079,422.00,DAISY COMMUNICATIONS LTD, 
East Lindsey District Council,http://statistics.data.gov.uk/id/local-authority/32UC,BM Sports Facilities,Telephones,24/01/13,IJ00018079,10.99,DAISY COMMUNICATIONS LTD, 
East Lindsey District Council,http://statistics.data.gov.uk/id/local-authority/32UC,Theatre Manager,Telephones,24/01/13,IJ00018079,58.06,DAISY COMMUNICATIONS LTD, 
East Lindsey District Council,http://statistics.data.gov.uk/id/local-authority/32UC,Business Development Manager,Telephones,24/01/13,IJ00018079,41.61,DAISY COMMUNICATIONS LTD, 
East Lindsey District Council,http://statistics.data.gov.uk/id/local-authority/32UC,Building Control Partnership,Telephones,24/01/13,IJ00018079,54.87,DAISY COMMUNICATIONS LTD, 
East Lindsey District Council,http://statistics.data.gov.uk/id/local-authority/32UC,TL IT - Network & Comms,Telephones,24/01/13,IJ00018079,95.92,DAISY COMMUNICATIONS LTD, 
East Lindsey District Council,http://statistics.data.gov.uk/id/local-authority/32UC,Policy & Project Manager,Telephones,24/01/13,IJ00018079,389.93,DAISY COMMUNICATIONS LTD, 
East Lindsey District Council,http://statistics.data.gov.uk/id/local-authority/32UC,Sports Centre Manager,Telephones,24/01/13,IJ00018079,22.45,DAISY COMMUNICATIONS LTD, 
East Lindsey District Council,http://statistics.data.gov.uk/id/local-authority/32UC,TL Property,Telephones,24/01/13,IJ00018079,10.99,DAISY COMMUNICATIONS LTD, 
East Lindsey District Council,http://statistics.data.gov.uk/id/local-authority/32UC,Hsg Private Sector TL,Telephones,24/01/13,IJ00018079,11.15,DAISY COMMUNICATIONS LTD, 
East Lindsey District Council,http://statistics.data.gov.uk/id/local-authority/32UC,Technical Services Team Leader,Telephones,24/01/13,IJ00018079,11.04,DAISY COMMUNICATIONS LTD, 
East Lindsey District Council,http://statistics.data.gov.uk/id/local-authority/32UC,Technical Services Team Leader,Telephones,24/01/13,IJ00018079,10.99,DAISY COMMUNICATIONS LTD, 
East Lindsey District Council,http://statistics.data.gov.uk/id/local-authority/32UC,Commercial Team Leader,Telephones,24/01/13,IJ00018079,11.06,DAISY COMMUNICATIONS LTD, 
East Lindsey District Council,http://statistics.data.gov.uk/id/local-authority/32UC,TL Property,Telephones,24/01/13,IJ00018079,21.98,DAISY COMMUNICATIONS LTD, 
East Lindsey District Council,http://statistics.data.gov.uk/id/local-authority/32UC,TL Property,Telephones,24/01/13,IJ00018079,33.62,DAISY COMMUNICATIONS LTD, 
East Lindsey District Council,http://statistics.data.gov.uk/id/local-authority/32UC,TL Property,Telephones,24/01/13,IJ00018079,10.99,DAISY COMMUNICATIONS LTD, 
East Lindsey District Council,http://statistics.data.gov.uk/id/local-authority/32UC,TL Property,Telephones,24/01/13,IJ00018079,11.04,DAISY COMMUNICATIONS LTD, 
East Lindsey District Council,http://statistics.data.gov.uk/id/local-authority/32UC,TL Property,Telephones,24/01/13,IJ00018079,25.50,DAISY COMMUNICATIONS LTD, 
East Lindsey District Council,http://statistics.data.gov.uk/id/local-authority/32UC,TL Property,Telephones,24/01/13,IJ00018079,50.44,DAISY COMMUNICATIONS LTD, 
East Lindsey District Council,http://statistics.data.gov.uk/id/local-authority/32UC,Theatre Manager,Telephones,24/01/13,IJ00018079,54.95,DAISY COMMUNICATIONS LTD, 
East Lindsey District Council,http://statistics.data.gov.uk/id/local-authority/32UC,SM Economic Regen & Property,Telephones,24/01/13,IJ00018079,11.00,DAISY COMMUNICATIONS LTD, 
East Lindsey District Council,http://statistics.data.gov.uk/id/local-authority/32UC,Horncastle Pool Manager,Telephones,24/01/13,IJ00018079,69.12,DAISY COMMUNICATIONS LTD, 
East Lindsey District Council,http://statistics.data.gov.uk/id/local-authority/32UC,Embassy Pool Manager,Telephones,24/01/13,IJ00018079,10.99,DAISY COMMUNICATIONS LTD, 
East Lindsey District Council,http://statistics.data.gov.uk/id/local-authority/32UC,Embassy Pool Manager,Telephones,24/01/13,IJ00018079,10.99,DAISY COMMUNICATIONS LTD, 
East Lindsey District Council,http://statistics.data.gov.uk/id/local-authority/32UC,Theatre Manager,Telephones,24/01/13,IJ00018079,10.99,DAISY COMMUNICATIONS LTD, 
East Lindsey District Council,http://statistics.data.gov.uk/id/local-authority/32UC,Service Development Manager,Telephones,24/01/13,IJ00018079,12.10,DAISY COMMUNICATIONS LTD, 
East Lindsey District Council,http://statistics.data.gov.uk/id/local-authority/32UC,Technical Services Team Leader,Telephones,24/01/13,IJ00018079,10.99,DAISY COMMUNICATIONS LTD, 
East Lindsey District Council,http://statistics.data.gov.uk/id/local-authority/32UC,Improvement & Development Mngr,Telephones,24/01/13,IJ00018079,23.53,DAISY COMMUNICATIONS LTD, 
East Lindsey District Council,http://statistics.data.gov.uk/id/local-authority/32UC,Corporate Accounting,Telephones,24/01/13,IJ00018079,11.03,DAISY COMMUNICATIONS LTD, 
East Lindsey District Council,http://statistics.data.gov.uk/id/local-authority/32UC,Corporate Accounting,Telephones,24/01/13,IJ00018079,10.99,DAISY COMMUNICATIONS LTD, 
East Lindsey District Council,http://statistics.data.gov.uk/id/local-authority/32UC,TL IT - Network & Comms,Telephones,24/01/13,IJ00018079,21.98,DAISY COMMUNICATIONS LTD, 
East Lindsey District Council,http://statistics.data.gov.uk/id/local-authority/32UC,Waste Services Manager,Telephones,24/01/13,IJ00018079,10.99,DAISY COMMUNICATIONS LTD, 
East Lindsey District Council,http://statistics.data.gov.uk/id/local-authority/32UC,TL Partnerships & Grants,Grants and Contributions to Outside Bodies- No Service Recei,24/01/13,IJ00018195,594.00,WRAGBY & DISTRICT SWIMMING CLUB, 
East Lindsey District Council,http://statistics.data.gov.uk/id/local-authority/32UC,Waste Services Manager,Fuel & Oil,24/01/13,IJ00018011,24625.72,EMO OIL LIMITED, 
East Lindsey District Council,http://statistics.data.gov.uk/id/local-authority/32UC,Democracy Manager,Public Courses and Workshops,24/01/13,IJ00018211,1412.80,LINKSUPPORT SERVICES UK LTD, 
East Lindsey District Council,http://statistics.data.gov.uk/id/local-authority/32UC,Meridian Facility Manager,Buildings Maintenance - Programmed,24/01/13,IJ00018207,1150.00,CAPITAL FLOORS LTD, 
East Lindsey District Council,http://statistics.data.gov.uk/id/local-authority/32UC,Meridian Facility Manager,Buildings Maintenance - Programmed,24/01/13,IJ00018208,840.00,INDEPENDANT CLEANING SERVICES LTD, 
East Lindsey District Council,http://statistics.data.gov.uk/id/local-authority/32UC,Democracy Manager,Grants and Contributions to Outside Bodies- No Service Recei,24/01/13,IJ00018076,1005.00,ALFORD COMMUNITY HELP FUND, 
East Lindsey District Council,http://statistics.data.gov.uk/id/local-authority/32UC,Health Team Leader,Furniture and Equipment,25/01/13,IJ00018253,1493.32,MARISCO MEDICAL PRACTICE, 
East Lindsey District Council,http://statistics.data.gov.uk/id/local-authority/32UC,TL Partnerships & Grants,Grants and Contributions to Outside Bodies- No Service Recei,30/01/13,IJ00017837,594.00,REDACTED PERSONAL INFORMATION,REDACT
East Lindsey District Council,http://statistics.data.gov.uk/id/local-authority/32UC,Horncastle Pool Manager,Other agencies,31/01/13,IJ00018296,5577.76,COMPETITION LINE (UK) LTD, 
East Lindsey District Council,http://statistics.data.gov.uk/id/local-authority/32UC,BALANCE  SHEET,Payroll-Net Pay,31/01/13,IJ00018388,750662.39,EAST LINDSEY DISTRICT COUNCIL, 
East Lindsey District Council,http://statistics.data.gov.uk/id/local-authority/32UC,Meridian Facility Manager,Buildings Maintenance - Programmed,31/01/13,IJ00018382,4203.71,J MELTON LTD, 
East Lindsey District Council,http://statistics.data.gov.uk/id/local-authority/32UC,Building Control,Buildings Maintenance - Responsive,31/01/13,IJ00018384,592.30,MIDLANDS SIGNS (LEICESTER) LTD, 
East Lindsey District Council,http://statistics.data.gov.uk/id/local-authority/32UC,Capital WIP,Grants and Contributions to Outside Bodies- No Service Recei,31/01/13,IJ00018378,8776.59,SIBJON BUILDERS, 
East Lindsey District Council,http://statistics.data.gov.uk/id/local-authority/32UC,Capital WIP,Grants and Contributions to Outside Bodies- No Service Recei,31/01/13,IJ00018378,508.72,SIBJON BUILDERS, 
East Lindsey District Council,http://statistics.data.gov.uk/id/local-authority/32UC,Hsg Private Sector TL,Other Income,31/01/13,IJ00018378,-829.05,SIBJON BUILDERS, 
East Lindsey District Council,http://statistics.data.gov.uk/id/local-authority/32UC,TL Property,Rent and Lease Payments,31/01/13,IJ00018263,6250.00,SKEGNESS GRAIN LTD, 
East Lindsey District Council,http://statistics.data.gov.uk/id/local-authority/32UC,Capital WIP,Grants and Contributions to Outside Bodies- No Service Recei,31/01/13,IJ00018437,4654.83,M & M GRANTHAM, 
East Lindsey District Council,http://statistics.data.gov.uk/id/local-authority/32UC,Hsg Private Sector TL,Other Income,31/01/13,IJ00018437,-415.61,M & M GRANTHAM, 
East Lindsey District Council,http://statistics.data.gov.uk/id/local-authority/32UC,Debt Recovery TL,Postages,31/01/13,IJ00018219,40.92,ROYAL MAIL, 
East Lindsey District Council,http://statistics.data.gov.uk/id/local-authority/32UC,Corporate Accounting,Postages,31/01/13,IJ00018219,614.20,ROYAL MAIL, 
East Lindsey District Council,http://statistics.data.gov.uk/id/local-authority/32UC,Corporate Accounting,Postages,31/01/13,IJ00018219,455.92,ROYAL MAIL, 
East Lindsey District Council,http://statistics.data.gov.uk/id/local-authority/32UC,Corporate Accounting,Postages,31/01/13,IJ00018219,705.72,ROYAL MAIL, 
East Lindsey District Council,http://statistics.data.gov.uk/id/local-authority/32UC,Corporate Accounting,Postages,31/01/13,IJ00018219,183.21,ROYAL MAIL, 
East Lindsey District Council,http://statistics.data.gov.uk/id/local-authority/32UC,Corporate Accounting,Postages,31/01/13,IJ00018219,38.82,ROYAL MAIL, 
East Lindsey District Council,http://statistics.data.gov.uk/id/local-authority/32UC,Corporate Accounting,Postages,31/01/13,IJ00018219,18.12,ROYAL MAIL, 
East Lindsey District Council,http://statistics.data.gov.uk/id/local-authority/32UC,Corporate Accounting,Postages,31/01/13,IJ00018219,105.03,ROYAL MAIL, 
East Lindsey District Council,http://statistics.data.gov.uk/id/local-authority/32UC,Debt Recovery TL,Postages,31/01/13,IJ00018264,23.04,ROYAL MAIL, 
East Lindsey District Council,http://statistics.data.gov.uk/id/local-authority/32UC,Development Control,Postages,31/01/13,IJ00018264,389.77,ROYAL MAIL, 
East Lindsey District Council,http://statistics.data.gov.uk/id/local-authority/32UC,Corporate Accounting,Postages,31/01/13,IJ00018264,471.77,ROYAL MAIL, 
East Lindsey District Council,http://statistics.data.gov.uk/id/local-authority/32UC,Corporate Accounting,Postages,31/01/13,IJ00018264,220.92,ROYAL MAIL, 
East Lindsey District Council,http://statistics.data.gov.uk/id/local-authority/32UC,Corporate Accounting,Postages,31/01/13,IJ00018264,763.28,ROYAL MAIL, 
East Lindsey District Council,http://statistics.data.gov.uk/id/local-authority/32UC,Corporate Accounting,Postages,31/01/13,IJ00018264,300.61,ROYAL MAIL, 
East Lindsey District Council,http://statistics.data.gov.uk/id/local-authority/32UC,Corporate Accounting,Postages,31/01/13,IJ00018264,57.87,ROYAL MAIL, 
East Lindsey District Council,http://statistics.data.gov.uk/id/local-authority/32UC,Corporate Accounting,Postages,31/01/13,IJ00018264,16.67,ROYAL MAIL, 
East Lindsey District Council,http://statistics.data.gov.uk/id/local-authority/32UC,Corporate Accounting,Postages,31/01/13,IJ00018264,100.21,ROYAL MAIL, 
East Lindsey District Council,http://statistics.data.gov.uk/id/local-authority/32UC,Democracy Manager,Postages,31/01/13,IJ00018276,1513.78,ROYAL MAIL, 
East Lindsey District Council,http://statistics.data.gov.uk/id/local-authority/32UC,Debt Recovery TL,Postages,31/01/13,IJ00018465,3.66,ROYAL MAIL, 
East Lindsey District Council,http://statistics.data.gov.uk/id/local-authority/32UC,Corporate Accounting,Postages,31/01/13,IJ00018465,627.96,ROYAL MAIL, 
East Lindsey District Council,http://statistics.data.gov.uk/id/local-authority/32UC,Corporate Accounting,Postages,31/01/13,IJ00018465,264.36,ROYAL MAIL, 
East Lindsey District Council,http://statistics.data.gov.uk/id/local-authority/32UC,Corporate Accounting,Postages,31/01/13,IJ00018465,706.12,ROYAL MAIL, 
East Lindsey District Council,http://statistics.data.gov.uk/id/local-authority/32UC,Corporate Accounting,Postages,31/01/13,IJ00018465,786.40,ROYAL MAIL, 
East Lindsey District Council,http://statistics.data.gov.uk/id/local-authority/32UC,Corporate Accounting,Postages,31/01/13,IJ00018465,45.70,ROYAL MAIL, 
East Lindsey District Council,http://statistics.data.gov.uk/id/local-authority/32UC,Corporate Accounting,Postages,31/01/13,IJ00018465,79.07,ROYAL MAIL, 
East Lindsey District Council,http://statistics.data.gov.uk/id/local-authority/32UC,Corporate Accounting,Postages,31/01/13,IJ00018465,74.51,ROYAL MAIL, 
East Lindsey District Council,http://statistics.data.gov.uk/id/local-authority/32UC,Shared Legal Services,Lincolnshire Legal Services,31/01/13,IJ00018466,387.00,LINCOLNSHIRE COUNTY COUNCIL, 
East Lindsey District Council,http://statistics.data.gov.uk/id/local-authority/32UC,Shared Legal Services,Lincolnshire Legal Services,31/01/13,IJ00018466,12413.79,LINCOLNSHIRE COUNTY COUNCIL, 
East Lindsey District Council,http://statistics.data.gov.uk/id/local-authority/32UC,Embassy Pool Manager,Buildings Maintenance - Programmed,31/01/13,IJ00018363,897.05,SEYMOUR & CASTLE LTD, 
East Lindsey District Council,http://statistics.data.gov.uk/id/local-authority/32UC,Meridian Facility Manager,Buildings Maintenance - Programmed,31/01/13,IJ00018365,1417.00,SEYMOUR & CASTLE LTD, 
East Lindsey District Council,http://statistics.data.gov.uk/id/local-authority/32UC,Meridian Facility Manager,Buildings Maintenance - Programmed,31/01/13,IJ00018366,1911.93,SEYMOUR & CASTLE LTD, 
East Lindsey District Council,http://statistics.data.gov.uk/id/local-authority/32UC,Meridian Facility Manager,Buildings Maintenance - Programmed,31/01/13,IJ00018367,1505.00,SEYMOUR & CASTLE LTD, 
East Lindsey District Council,http://statistics.data.gov.uk/id/local-authority/32UC,Embassy Pool Manager,Buildings Maintenance - Programmed,31/01/13,IJ00018368,978.00,SEYMOUR & CASTLE LTD, 
East Lindsey District Council,http://statistics.data.gov.uk/id/local-authority/32UC,Horncastle Pool Manager,Buildings Maintenance - Programmed,31/01/13,IJ00018371,1729.59,DEVLIN DECORATORS LTD, 
East Lindsey District Council,http://statistics.data.gov.uk/id/local-authority/32UC,Service Development Manager,Buildings Maintenance - Responsive,31/01/13,IJ00018330,820.00,EKM LTD, 
East Lindsey District Council,http://statistics.data.gov.uk/id/local-authority/32UC,Corporate Accounting,Postages,31/01/13,IJ00018273,9000.00,NEOPOST LTD, 
East Lindsey District Council,http://statistics.data.gov.uk/id/local-authority/32UC,Council Tax TL,VAT Customs and Excise,31/01/13,IJ00018258,628.62,JACOBS, 
East Lindsey District Council,http://statistics.data.gov.uk/id/local-authority/32UC,Council Tax TL,VAT Customs and Excise,31/01/13,IJ00018281,942.45,JACOBS, 
East Lindsey District Council,http://statistics.data.gov.uk/id/local-authority/32UC,Meridian Facility Manager,Furniture and Equipment,31/01/13,IJ00018252,587.00,D & D ENGINEERING (LINCS) LTD, 
East Lindsey District Council,http://statistics.data.gov.uk/id/local-authority/32UC,Meridian Facility Manager,Cleaning Contract,31/01/13,IJ00018246,146.19,ESPO, 
East Lindsey District Council,http://statistics.data.gov.uk/id/local-authority/32UC,Meridian Facility Manager,Materials and Consumables,31/01/13,IJ00018246,379.00,ESPO, 
East Lindsey District Council,http://statistics.data.gov.uk/id/local-authority/32UC,Waste Services Manager,Materials and Consumables,31/01/13,IJ00018246,26.88,ESPO, 
East Lindsey District Council,http://statistics.data.gov.uk/id/local-authority/32UC,Meridian Facility Manager,Stationery,31/01/13,IJ00018246,71.32,ESPO, 
East Lindsey District Council,http://statistics.data.gov.uk/id/local-authority/32UC,Sports Centre Manager,Stationery,31/01/13,IJ00018246,9.65,ESPO, 
East Lindsey District Council,http://statistics.data.gov.uk/id/local-authority/32UC,Horncastle Pool Manager,Stationery,31/01/13,IJ00018246,62.00,ESPO, 
East Lindsey District Council,http://statistics.data.gov.uk/id/local-authority/32UC,Meridian Facility Manager,Fixtures And Fittings,31/01/13,IJ00018246,184.00,ESPO, 
East Lindsey District Council,http://statistics.data.gov.uk/id/local-authority/32UC,Area Working,Materials and Consumables,31/01/13,IJ00018246,162.50,ESPO, 
East Lindsey District Council,http://statistics.data.gov.uk/id/local-authority/32UC,Area Working,Materials and Consumables,31/01/13,IJ00018246,47.30,ESPO, 
East Lindsey District Council,http://statistics.data.gov.uk/id/local-authority/32UC,Area Working,Materials and Consumables,31/01/13,IJ00018246,47.00,ESPO, 
East Lindsey District Council,http://statistics.data.gov.uk/id/local-authority/32UC,Policy & Project Manager,Stationery,31/01/13,IJ00018246,22.90,ESPO, 
East Lindsey District Council,http://statistics.data.gov.uk/id/local-authority/32UC,Hsg Advice & Homelessness TL,Electricity,31/01/13,IJ00018279,201.53,EDF ENERGY 1 LIMITED, 
East Lindsey District Council,http://statistics.data.gov.uk/id/local-authority/32UC,Hsg Advice & Homelessness TL,Gas,31/01/13,IJ00018279,469.94,EDF ENERGY 1 LIMITED, 
East Lindsey District Council,http://statistics.data.gov.uk/id/local-authority/32UC,Environment Team Leader,Other Private Contractors,31/01/13,IJ00018315,1275.00,NEW LINX HOUSING TRUST, 
East Lindsey District Council,http://statistics.data.gov.uk/id/local-authority/32UC,Hsg Advice & Homelessness TL,Rent and Lease Payments,31/01/13,IJ00018340,1040.52,NEW LINX HOUSING TRUST, 
East Lindsey District Council,http://statistics.data.gov.uk/id/local-authority/32UC,Hsg Advice & Homelessness TL,Rent and Lease Payments,31/01/13,IJ00018341,1018.80,NEW LINX HOUSING TRUST, 
East Lindsey District Council,http://statistics.data.gov.uk/id/local-authority/32UC,Hsg Advice & Homelessness TL,Rent and Lease Payments,31/01/13,IJ00018342,1072.44,NEW LINX HOUSING TRUST, 
East Lindsey District Council,http://statistics.data.gov.uk/id/local-authority/32UC,Hsg Advice & Homelessness TL,Rent and Lease Payments,31/01/13,IJ00018343,1107.96,NEW LINX HOUSING TRUST, 
East Lindsey District Council,http://statistics.data.gov.uk/id/local-authority/32UC,Hsg Advice & Homelessness TL,Rent and Lease Payments,31/01/13,IJ00018344,1107.96,NEW LINX HOUSING TRUST, 
East Lindsey District Council,http://statistics.data.gov.uk/id/local-authority/32UC,Hsg Advice & Homelessness TL,Rent and Lease Payments,31/01/13,IJ00018345,1107.96,NEW LINX HOUSING TRUST, 
East Lindsey District Council,http://statistics.data.gov.uk/id/local-authority/32UC,Hsg Advice & Homelessness TL,Rent and Lease Payments,31/01/13,IJ00018346,1107.96,NEW LINX HOUSING TRUST, 
East Lindsey District Council,http://statistics.data.gov.uk/id/local-authority/32UC,Hsg Advice & Homelessness TL,Rent and Lease Payments,31/01/13,IJ00018347,1126.92,NEW LINX HOUSING TRUST, 
East Lindsey District Council,http://statistics.data.gov.uk/id/local-authority/32UC,Hsg Advice & Homelessness TL,Rent and Lease Payments,31/01/13,IJ00018348,1126.92,NEW LINX HOUSING TRUST, 
East Lindsey District Council,http://statistics.data.gov.uk/id/local-authority/32UC,Hsg Advice & Homelessness TL,Rent and Lease Payments,31/01/13,IJ00018349,1200.48,NEW LINX HOUSING TRUST, 
East Lindsey District Council,http://statistics.data.gov.uk/id/local-authority/32UC,Meridian Facility Manager,Other Miscellaneous Expenses,31/01/13,IJ00018292,737.62,DEE BEE, 
East Lindsey District Council,http://statistics.data.gov.uk/id/local-authority/32UC,Theatre Manager,Performers and Entertainers Fees,31/01/13,IJ00018420,9000.00,WILD ROSE LTD, 
East Lindsey District Council,http://statistics.data.gov.uk/id/local-authority/32UC,Waste Services Manager,Agency Staff,31/01/13,IJ00018328,2653.53,CLOSE INVOICE FINANCE LTD, 
East Lindsey District Council,http://statistics.data.gov.uk/id/local-authority/32UC,Meridian Facility Manager,Materials and Consumables,31/01/13,IJ00018331,550.00,SIEMENS PLC, 
East Lindsey District Council,http://statistics.data.gov.uk/id/local-authority/32UC,Meridian Facility Manager,Purchase Of Goods For Resale,31/01/13,IJ00018290,1565.73,SRS LEISURE, 
East Lindsey District Council,http://statistics.data.gov.uk/id/local-authority/32UC,Waste Services Manager,Insurance,31/01/13,IJ00018284,114.00,TRAVELERS INSURANCE COMPANY LIMITED, 
East Lindsey District Council,http://statistics.data.gov.uk/id/local-authority/32UC,Waste Services Manager,Insurance,31/01/13,IJ00018284,403.20,TRAVELERS INSURANCE COMPANY LIMITED, 
East Lindsey District Council,http://statistics.data.gov.uk/id/local-authority/32UC,Service Development Manager,Insurance,31/01/13,IJ00018284,6784.84,TRAVELERS INSURANCE COMPANY LIMITED, 
East Lindsey District Council,http://statistics.data.gov.uk/id/local-authority/32UC,Democracy Manager,Insurance,31/01/13,IJ00018284,10112.61,TRAVELERS INSURANCE COMPANY LIMITED, 
East Lindsey District Council,http://statistics.data.gov.uk/id/local-authority/32UC,Waste Services Manager,Insurance,31/01/13,IJ00018284,1952.41,TRAVELERS INSURANCE COMPANY LIMITED, 
East Lindsey District Council,http://statistics.data.gov.uk/id/local-authority/32UC,Service Development Manager,Insurance,31/01/13,IJ00018284,762.00,TRAVELERS INSURANCE COMPANY LIMITED, 
East Lindsey District Council,http://statistics.data.gov.uk/id/local-authority/32UC,Capital WIP,Grants and Contributions to Outside Bodies- No Service Recei,31/01/13,IJ00018375,6864.96,ANDREW BLADES BUILDING SERVICES LTD, 
East Lindsey District Council,http://statistics.data.gov.uk/id/local-authority/32UC,Hsg Private Sector TL,Other Income,31/01/13,IJ00018375,-612.94,ANDREW BLADES BUILDING SERVICES LTD, 
East Lindsey District Council,http://statistics.data.gov.uk/id/local-authority/32UC,Capital WIP,Works to Buildings (main Contractor),31/01/13,IJ00018306,4855.00,PELL PLANT HIRE LTD, 
East Lindsey District Council,http://statistics.data.gov.uk/id/local-authority/32UC,Democracy Manager,Grants and Contributions to Outside Bodies- No Service Recei,31/01/13,IJ00018324,700.00,TATTERSHALL WITH THORPE PARISH COUNCIL, 
East Lindsey District Council,http://statistics.data.gov.uk/id/local-authority/32UC,Development Control,Banking Charges,31/01/13,IJ00018470,2.54,CAPITA BUSINESS SERVICES LTD, 
East Lindsey District Council,http://statistics.data.gov.uk/id/local-authority/32UC,Enforcement Team Leader,Banking Charges,31/01/13,IJ00018470,13.11,CAPITA BUSINESS SERVICES LTD, 
East Lindsey District Council,http://statistics.data.gov.uk/id/local-authority/32UC,Corporate Accounting,Banking Charges,31/01/13,IJ00018470,441.81,CAPITA BUSINESS SERVICES LTD, 
East Lindsey District Council,http://statistics.data.gov.uk/id/local-authority/32UC,Corporate Accounting,Banking Charges,31/01/13,IJ00018470,32.25,CAPITA BUSINESS SERVICES LTD, 
East Lindsey District Council,http://statistics.data.gov.uk/id/local-authority/32UC,Corporate Accounting,Banking Charges,31/01/13,IJ00018470,1897.74,CAPITA BUSINESS SERVICES LTD, 
East Lindsey District Council,http://statistics.data.gov.uk/id/local-authority/32UC,Corporate Accounting,Banking Charges,31/01/13,IJ00018470,46.24,CAPITA BUSINESS SERVICES LTD, 
East Lindsey District Council,http://statistics.data.gov.uk/id/local-authority/32UC,Corporate Accounting,Banking Charges,31/01/13,IJ00018470,29.61,CAPITA BUSINESS SERVICES LTD, 
East Lindsey District Council,http://statistics.data.gov.uk/id/local-authority/32UC,Capital WIP,Grants and Contributions to Outside Bodies- No Service Recei,31/01/13,IJ00018372,6487.93,DOLPHIN MOBILITY EAST MIDLANDS, 
East Lindsey District Council,http://statistics.data.gov.uk/id/local-authority/32UC,Hsg Private Sector TL,Other Income,31/01/13,IJ00018372,-1064.94,DOLPHIN MOBILITY EAST MIDLANDS, 
East Lindsey District Council,http://statistics.data.gov.uk/id/local-authority/32UC,Capital WIP,Grants and Contributions to Outside Bodies- No Service Recei,31/01/13,IJ00018433,7730.62,DENNISS & MARWOOD, 
East Lindsey District Council,http://statistics.data.gov.uk/id/local-authority/32UC,Hsg Private Sector TL,Other Income,31/01/13,IJ00018433,-881.57,DENNISS & MARWOOD, 
East Lindsey District Council,http://statistics.data.gov.uk/id/local-authority/32UC,Enforcement Team Leader,Other Miscellaneous Expenses,31/01/13,IJ00018400,4000.00,RIGGOTT & CO LTD, 
East Lindsey District Council,http://statistics.data.gov.uk/id/local-authority/32UC,Enforcement Team Leader,Other Miscellaneous Expenses,31/01/13,IJ00018402,3200.00,RIGGOTT & CO LTD, 
East Lindsey District Council,http://statistics.data.gov.uk/id/local-authority/32UC,Organisational Dev Manager,Staff Training Expenses,31/01/13,IJ00018447,6357.30,REDQUADRANT LTD, 
East Lindsey District Council,http://statistics.data.gov.uk/id/local-authority/32UC,Area Working,Agency Staff,31/01/13,IJ00018319,768.95,THE WORKSHOP (WISBECH) LIMITED, 
East Lindsey District Council,http://statistics.data.gov.uk/id/local-authority/32UC,Area Working,Agency Staff,31/01/13,IJ00018319,768.95,THE WORKSHOP (WISBECH) LIMITED, 
East Lindsey District Council,http://statistics.data.gov.uk/id/local-authority/32UC,Theatre Manager,Performers and Entertainers Fees,31/01/13,IJ00018352,26480.61,JAMIE MARCUS PRODUCTIONS LTD, 
East Lindsey District Council,http://statistics.data.gov.uk/id/local-authority/32UC,Theatre Manager,Performers and Entertainers Fees,31/01/13,IJ00018352,-3052.01,JAMIE MARCUS PRODUCTIONS LTD, 
East Lindsey District Council,http://statistics.data.gov.uk/id/local-authority/32UC,Theatre Manager,Advertising - Events,31/01/13,IJ00018352,166.68,JAMIE MARCUS PRODUCTIONS LTD, 
East Lindsey District Council,http://statistics.data.gov.uk/id/local-authority/32UC,Capital WIP,Grants and Contributions to Outside Bodies- No Service Recei,31/01/13,IJ00018376,4756.16,HARRIS BUILDING SERVICES, 
East Lindsey District Council,http://statistics.data.gov.uk/id/local-authority/32UC,Health Team Leader,Professional & Contractors Fees,31/01/13,IJ00018251,2886.00,GARDEN ORGANIC, 
East Lindsey District Council,http://statistics.data.gov.uk/id/local-authority/32UC,Embassy Pool Manager,Water and Sewerage Charges,31/01/13,IJ00018386,1449.93,ANGLIAN WATER, 
East Lindsey District Council,http://statistics.data.gov.uk/id/local-authority/32UC,Business Development Manager,Other Miscellaneous Expenses,31/01/13,IJ00018394,10000.00,VISITBRITAIN, 
East Lindsey District Council,http://statistics.data.gov.uk/id/local-authority/32UC,Corporate Accounting,External Audit Fees,31/01/13,IJ00018443,16915.00,KPMG LLP, 
East Lindsey District Council,http://statistics.data.gov.uk/id/local-authority/32UC,Corporate Accounting,External Audit Fees,31/01/13,IJ00018444,522.50,KPMG LLP, 
East Lindsey District Council,http://statistics.data.gov.uk/id/local-authority/32UC,Commercial Team Leader,Other Private Contractors,31/01/13,IJ00018397,1121.00,SKEGNESS & DISTRICT FUNERAL SERVICES, 
East Lindsey District Council,http://statistics.data.gov.uk/id/local-authority/32UC,TL Property,Professional & Contractors Fees,31/01/13,IJ00018274,1800.00,NPS HUMBER LTD, 
East Lindsey District Council,http://statistics.data.gov.uk/id/local-authority/32UC,Improvement & Development Mngr,Clothing Uniforms And Laundry,31/01/13,IJ00018326,649.65,SAFETY MANAGEMENT INT GROUP, 
East Lindsey District Council,http://statistics.data.gov.uk/id/local-authority/32UC,Meridian Facility Manager,Materials and Consumables,31/01/13,IJ00018285,910.00,PAC WRISTBANDS LTD, 
East Lindsey District Council,http://statistics.data.gov.uk/id/local-authority/32UC,Waste Services Manager,Commercial Vehicle Lease,31/01/13,IJ00018323,7700.00,MAY GURNEY FLEET & PASSENGER SERVICES LTD, 
East Lindsey District Council,http://statistics.data.gov.uk/id/local-authority/32UC,TL IT - Infrastructure,Professional & Contractors Fees,31/01/13,IJ00018450,1500.00,INFRASYS LTD, 
East Lindsey District Council,http://statistics.data.gov.uk/id/local-authority/32UC,Capital WIP,Grants and Contributions to Outside Bodies- No Service Recei,31/01/13,IJ00018377,5209.91,ANDREW WRISDALE BUILDING CONTRACTOR, 
East Lindsey District Council,http://statistics.data.gov.uk/id/local-authority/32UC,Hsg Private Sector TL,Other Income,31/01/13,IJ00018377,-465.17,ANDREW WRISDALE BUILDING CONTRACTOR, 
East Lindsey District Council,http://statistics.data.gov.uk/id/local-authority/32UC,Capital WIP,Grants and Contributions to Outside Bodies- No Service Recei,31/01/13,IJ00018379,4829.18,ANDREW WRISDALE BUILDING CONTRACTOR, 
East Lindsey District Council,http://statistics.data.gov.uk/id/local-authority/32UC,Hsg Private Sector TL,Other Income,31/01/13,IJ00018379,-431.18,ANDREW WRISDALE BUILDING CONTRACTOR, 
East Lindsey District Council,http://statistics.data.gov.uk/id/local-authority/32UC,Business Development Manager,Other Miscellaneous Expenses,31/01/13,IJ00018332,1300.00,MIRROR GROUP NEWSPAPER, 
East Lindsey District Council,http://statistics.data.gov.uk/id/local-authority/32UC,Business Development Manager,Other Miscellaneous Expenses,31/01/13,IJ00018333,1300.00,MIRROR GROUP NEWSPAPER, 
East Lindsey District Council,http://statistics.data.gov.uk/id/local-authority/32UC,Business Development Manager,Other Miscellaneous Expenses,31/01/13,IJ00018334,650.00,MIRROR GROUP NEWSPAPER, 
East Lindsey District Council,http://statistics.data.gov.uk/id/local-authority/32UC,Enforcement Team Leader,Professional & Contractors Fees,31/01/13,IJ00018282,800.00,KBW BARRISTERS CHAMBERS, 
East Lindsey District Council,http://statistics.data.gov.uk/id/local-authority/32UC,Sports Development,Other Miscellaneous Expenses,31/01/13,IJ00018265,500.00,LOUTH TENNIS AND SPORTS CENTRE, 
East Lindsey District Council,http://statistics.data.gov.uk/id/local-authority/32UC,Hsg Advice & Homelessness TL,Other Miscellaneous Expenses,31/01/13,IJ00018270,500.00,REDACTED PERSONAL INFORMATION,REDACT
East Lindsey District Council,http://statistics.data.gov.uk/id/local-authority/32UC,Health Team Leader,Staff Training Expenses,31/01/13,IJ00018446,1048.00,Art of Brilliance Ltd, 
East Lindsey District Council,http://statistics.data.gov.uk/id/local-authority/32UC,Democracy Manager,Grants and Contributions to Outside Bodies- No Service Recei,31/01/13,IJ00018354,500.00,COASTAL FM COMMUNITY RADIO, 
East Lindsey District Council,http://statistics.data.gov.uk/id/local-authority/32UC,Hsg Advice & Homelessness TL,Grants and Contributions to Outside Bodies- No Service Recei,31/01/13,IJ00018457,800.00,REDACTED PERSONAL INFORMATION,REDACT
